Cogmind - Beta 10 X1 @@@ ROGUE MODE // 2020.08.30 @ 21:10:50 Player: SirMrDrProf Result: Establishing 0b11! Performance ------------- Evolutions (9) 4500 Regions Visited (42) 8400 Robots Destroyed (219) 1095 Value Destroyed (11097) 11097 Prototype IDs (110) 2200 Alien Tech Used (11) 2200 Bonus (51962) 51962 TOTAL SCORE: 81454 Bonus ------- Triggered High Security 500 High Alert Combat Kills 2684 Follower Combat Kills 3426 Network Hubs Disabled 200 Aligned with FarCom 300 Met Data Miner 300 Met Imprinter 300 Met Warlord at Base 500 MAIN.C Attacked Warlord 500 Built Enhanced Grunts 300 A7 Reached Mainframe 300 Met R17 at Cetus 500 Found Hidden Lab 3000 Destroyed MAIN.C Guards 500 Met MAIN.C 5000 Destroyed MAIN.C Shell 5000 Destroyed MAIN.C 10000 Met Architect 300 Started Test 138-B 500 Destroyed A8 300 Destroyed A6 400 Destroyed A5 500 Destroyed A4 700 Destroyed A3 800 Destroyed A2 1000 Destroyed Architect 15000 Win 3000 Friendly Fire -3848 Cogmind --------- Core Integrity 1034/1850 Matter 295/300 Energy 676/700 System Corruption 0% Temperature Cool (24) Movement Flying (14) Location 0b11 Command Parts ------- > --- POWER (2) -------- Vortex Chain Reactor > --- PROPULSION (8) --- Electron Diverter Electron Diverter Electron Diverter Electron Diverter Electron Diverter Electron Diverter Electron Diverter Electron Diverter > --- UTILITY (14) ----- Experimental Power Amplifier Experimental Cooling System High-capacity Storage Unit Experimental Optical Array Surveybot 24 Chip Experimental Melee Analysis Suite Experimental Core Analyzer Experimental Armor Integrity Analyzer Experimental Phase Shifter Experimental Powered Armor Experimental Powered Armor AEGIS Remote Shield > --- WEAPON (2) ------- Sigix Broadsword > --- INVENTORY (12) --- Advanced Medium Treads Enhanced Flexi-carbon Leg Improved Diametric Drive Advanced Kinecellerator Experimental Thermal Shield Beam Splitter EM Dispersion Field HERF Cannon Guided Remote Datajack Peak State ------------ > --- POWER ------------ Zero-point Reactor Zero-point Reactor > --- PROPULSION ------- Electron Diverter Electron Diverter Electron Diverter Electron Diverter Electron Diverter Electron Diverter Electron Diverter Improved Diametric Drive > --- UTILITY ---------- Experimental Power Amplifier Experimental Cooling System High-capacity Storage Unit Experimental Optical Array Surveybot 24 Chip Experimental Melee Analysis Suite Experimental Core Analyzer Experimental Armor Integrity Analyzer Experimental Weapon Cycler Femtoactuators Experimental Powered Armor Experimental Powered Armor Beam Splitter AEGIS Remote Shield > --- WEAPON ----------- Sigix Broadsword > --- INVENTORY -------- Vortex Chain Reactor Enhanced Flexi-carbon Leg Electron Diverter Advanced Kinecellerator Experimental Thermal Shield EM Dispersion Field High-powered Transdimensional Reconstructor HERF Cannon Railgun Guided Remote Datajack [Rating: 251] Favorites ----------- Power Micro Fission Core Engine Heavy Ion Engine Power Core Micro Fission Core Reactor Vortex Chain Reactor Propulsion Electron Diverter Treads Advanced Medium Treads Leg Enhanced Flexi-carbon Leg Flight Unit Electron Diverter Utility Medium Storage Unit Device Experimental Sensor Array Storage Medium Storage Unit Processor Surveybot 24 Chip Hackware Improved System Shield Protection Experimental Powered Armor Weapon Enhanced Autogun Energy Gun Vortex Rifle Energy Cannon HERF Cannon Ballistic Gun Enhanced Autogun Launcher Mini Grenade Launcher Special Weapon Improved Remote Datajack Slashing Weapon Sigix Broadsword Piercing Weapon Kinetic Spear Build | -11 -10 -10 -9 -9 -9 -8 -8 -7 -7 -7 -7 -7 -7 -6 -6 -6 -6 -6 -5 -5 -5 -5 -5 -5 -5 -5 -4 -4 -4 -4 -4 -4 -3 -3 -3 -3 -2 -2 -2 -1 -1 -1 ------- Run | Scr Mat Min Mat Min Exi Min Mat Fac Was Fac Low Low Dat Pro Fac Low Zio Dee Pro Fac Was Fac Ext Cet Arc Hub Fac Was Fac Upp Upp War Pro Res Arm Lab Res Qua Sec Acc Com Ac0 Slots Evolved 18 | . . . 2 . . . 2 2 . . . . . . 2 . . . . 2 . . . . . . 2 . . . . . . 2 . . 2 . . 2 . . Power 1 | . . . . . . . . 1 . . . . . . . . . . . . . . . . . . . . . . . . . . . . . . . . . . Propulsion 5 | . . . 1 . . . . 1 . . . . . . . . . . . . . . . . . . 1 . . . . . . 1 . . 1 . . . . . Utility 12 | . . . 1 . . . 2 . . . . . . . 2 . . . . 2 . . . . . . 1 . . . . . . 1 . . 1 . . 2 . . Weapon . | . . . . . . . . . . . . . . . . . . . . . . . . . . . . . . . . . . . . . . . . . . . Parts Attached 264 | 2 8 1 5 2 1 1 15 18 1 3 2 . . . 10 1 2 1 3 8 . 10 2 2 . 5 6 . 9 . . 12 . 24 6 7 1 3 20 4 38 31 Power 20 | . 1 . 1 1 . . 1 5 . . . . . . . . . . . 2 . 1 . . . . 1 . 1 . . . . 1 . . . . . . 4 1 Engine 7 | . 1 . 1 1 . . 1 3 . . . . . . . . . . . . . . . . . . . . . . . . . . . . . . . . . . Core 6 | . . . . . . . . 2 . . . . . . . . . . . 2 . 1 . . . . 1 . . . . . . . . . . . . . . . Reactor 7 | . . . . . . . . . . . . . . . . . . . . . . . . . . . . . 1 . . . . 1 . . . . . . 4 1 Propulsion 43 | . 2 1 1 . . . 3 2 . . 1 . . . 1 . . . 1 3 . 2 . . . 1 1 . 2 . . . . 11 3 . 1 . . . . 7 Treads 1 | . . . . . . . . . . . . . . . . . . . . . . . . . . . . . . . . . . . . . . . . . . 1 Leg 1 | . . . . . . . . . . . . . . . . . . . . . . . . . . . . . . . . . . . . . . . . . . 1 Wheel . | . . . . . . . . . . . . . . . . . . . . . . . . . . . . . . . . . . . . . . . . . . . Hover . | . . . . . . . . . . . . . . . . . . . . . . . . . . . . . . . . . . . . . . . . . . . Flight 41 | . 2 1 1 . . . 3 2 . . 1 . . . 1 . . . 1 3 . 2 . . . 1 1 . 2 . . . . 11 3 . 1 . . . . 5 Utility 120 | . 1 . 1 . 1 . 5 2 1 1 1 . . . 6 1 1 1 1 2 . 5 1 1 . 3 4 . 6 . . 7 . 10 2 2 . 2 18 4 13 17 Device 82 | . . . . . 1 . 2 1 . . 1 . . . 1 1 . . . 1 . 4 1 1 . 2 3 . 5 . . 5 . 7 1 1 . 1 16 3 7 17 Storage 3 | . . . . . . . 1 . . . . . . . . . . . . . . . . . . 1 . . . . . . . . . . . . . 1 . . Processor 14 | . . . 1 . . . 1 . . 1 . . . . 1 . . . . 1 . 1 . . . . . . . . . 1 . 1 1 . . 1 2 . 2 . Hackware 13 | . . . . . . . . 1 . . . . . . 4 . 1 . 1 . . . . . . . 1 . 1 . . 1 . 2 . 1 . . . . . . Protection 8 | . 1 . . . . . 1 . 1 . . . . . . . . 1 . . . . . . . . . . . . . . . . . . . . . . 4 . Artifact . | . . . . . . . . . . . . . . . . . . . . . . . . . . . . . . . . . . . . . . . . . . . Weapon 81 | 2 4 . 2 1 . 1 6 9 . 2 . . . . 3 . 1 . 1 1 . 2 1 1 . 1 . . . . . 5 . 2 1 5 . 1 2 . 21 6 Energy Gun 3 | . . . . . . . . . . . . . . . . . . . . . . . . . . . . . . . . 1 . . . 2 . . . . . . Energy Cannon 5 | . . . . . . . . . . . . . . . . . . . . . . . . . . . . . . . . . . . . . . . . . 5 . Ballistic Gun 26 | 2 4 . 2 1 . . 4 4 . . . . . . . . . . . . . . . 1 . . . . . . . 2 . 1 1 2 . . . . 2 . Ballistic Cannon . | . . . . . . . . . . . . . . . . . . . . . . . . . . . . . . . . . . . . . . . . . . . Launcher 4 | . . . . . . . . 2 . 1 . . . . 1 . . . . . . . . . . . . . . . . . . . . . . . . . . . Special Weapon 13 | . . . . . . . . . . . . . . . . . . . . . . . 1 . . . . . . . . 2 . . . 1 . . 1 . 5 3 Impact Weapon . | . . . . . . . . . . . . . . . . . . . . . . . . . . . . . . . . . . . . . . . . . . . Slashing Weapon 24 | . . . . . . 1 2 3 . 1 . . . . 1 . 1 . . . . 1 . . . . . . . . . . . . . . . 1 1 . 9 3 Piercing Weapon 6 | . . . . . . . . . . . . . . . 1 . . . 1 1 . 1 . . . 1 . . . . . . . 1 . . . . . . . . Special Melee Weapon . | . . . . . . . . . . . . . . . . . . . . . . . . . . . . . . . . . . . . . . . . . . . Unidentified Prototypes 64 | . . . . . . . 3 2 . . 1 . . . 1 . . . . . . . . 1 . 2 2 . 4 . . 5 . 7 1 5 . 1 8 1 7 13 Parts Lost 21 | . 2 . 1 . . . . 2 . . . . . . . . . 5 . . . 2 . . . 1 . . . . . . 1 1 . . . . . . 3 3 Power 2 | . . . . . . . . 1 . . . . . . . . . 1 . . . . . . . . . . . . . . . . . . . . . . . . Propulsion 5 | . . . 1 . . . . . . . . . . . . . . 3 . . . . . . . 1 . . . . . . . . . . . . . . . . Utility 9 | . . . . . . . . 1 . . . . . . . . . . . . . 2 . . . . . . . . . . 1 . . . . . . . 2 3 Weapon 5 | . 2 . . . . . . . . . . . . . . . . 1 . . . . . . . . . . . . . . . 1 . . . . . . 1 . Highest Loss Streak 5 | . 2 . 1 . . . . 1 . . . . . . . . . 5 . . . 1 . . . 1 . . . . . . 1 1 . . . . . . 1 1 Average Slot Usage (%) 93 | . 39 85 78 75 76 77 92 98 100 100 100 100 100 100 100 95 99 96 74 86 94 98 100 100 100 99 98 100 100 100 100 99 98 90 95 95 91 91 90 90 91 94 Engine 2 | . 3 14 8 9 11 11 9 8 7 7 7 7 7 7 6 6 6 6 6 4 . . . . . . . . . . . . . . . . . . . . . . Core 3 | . . . . . . . . 4 7 7 7 7 7 7 6 6 6 5 . 4 11 11 11 11 11 11 10 10 5 5 5 5 5 . . . . . . . . . Reactor 2 | . . . . . . . . . . . . . . . . . . . . . . . . . . . . . 4 5 5 5 5 4 4 4 4 4 4 3 3 6 Flight 28 | . 7 28 30 22 22 22 25 30 30 30 33 35 35 35 31 31 31 28 18 23 27 27 27 27 27 26 28 30 30 30 30 30 30 30 31 31 33 33 33 30 30 29 Device 17 | . . . . . 1 11 21 16 23 19 14 14 14 14 12 12 12 11 6 7 11 15 16 16 16 16 15 20 20 20 20 19 20 17 22 22 20 20 19 24 26 22 Storage 4 | . . . . . . . 3 7 7 7 7 7 7 7 6 6 6 6 6 5 5 5 5 5 5 5 5 5 5 5 5 5 5 4 4 4 4 4 4 3 3 3 Processor 12 | . . . 6 11 11 11 14 9 3 2 7 7 7 7 6 6 6 6 6 11 11 14 16 16 16 16 15 15 15 15 15 15 15 17 13 13 12 15 16 15 15 19 Hackware 7 | . . . . . . . . 3 . . . . . . 12 12 17 18 25 22 22 12 11 11 11 11 14 10 10 10 10 10 8 4 9 9 8 8 8 7 4 . Protection 1 | . 2 14 11 11 8 . . . 3 7 7 7 7 7 6 2 . . . . . . . . . . . . . . . . . . . . . . . . . 7 Ballistic Gun 4 | . 25 28 22 22 22 15 16 14 7 7 7 7 7 7 6 6 6 6 . . . . . 4 5 5 5 5 5 5 5 4 5 4 4 4 4 . . . . . Slashing Weapon 2 | . . . . . . 6 1 . 7 6 7 7 7 7 4 . 2 6 . . . 4 5 5 5 2 . . . . . . . . . . . 3 3 3 2 2 Piercing Weapon 2 | . . . . . . . . . . . . . . . 1 6 3 . 5 5 5 5 1 . . 2 5 5 5 5 5 5 5 4 4 4 4 . . . . . Naked Turns . | . . . . . . . . . . . . . . . . . . . . . . . . . . . . . . . . . . . . . . . . . . . Heaviest Build 123 | 2 6 6 12 8 8 8 23 32 32 32 31 31 31 31 31 30 31 31 20 36 33 34 30 32 32 32 32 32 39 39 39 40 39 72 72 72 72 74 74 101 118 123 Greatest Support 124 | 3 8 8 12 8 8 8 27 33 32 32 33 33 33 33 35 32 31 31 20 40 36 42 42 42 42 42 42 42 52 52 52 52 52 74 87 87 100 100 120 120 120 124 Greatest Overweight (x) 2 | . . . . . . . . . . . . . . . . . . 1 . . . . . . . . . . . . . . . 1 . . . . . . . 2 Average Overweight (x) . | . . . . . . . . . . . . . . . . . . . . . . . . . . . . . . . . . . . . . . . . . . . Largest Inventory Capacity 12 | 4 4 4 4 4 4 4 8 8 8 8 8 8 8 8 8 8 8 8 8 8 8 8 8 8 8 8 8 8 8 8 8 8 8 8 8 8 8 8 8 12 12 12 Average Capacity 8 | 4 4 4 4 4 4 4 5 8 8 8 8 8 8 8 8 8 8 8 8 8 8 8 8 8 8 8 8 8 8 8 8 8 8 8 8 8 8 8 8 8 12 12 Most Carried 12 | 2 4 4 4 4 4 4 7 8 8 8 8 8 8 8 8 8 8 8 7 8 8 8 8 8 8 8 8 7 8 8 8 8 7 8 8 8 8 8 8 10 12 12 Average Carried 7 | 1 3 4 3 2 3 4 4 7 8 7 7 8 8 8 7 7 8 7 6 7 7 7 7 7 8 7 5 7 7 8 8 7 7 7 7 7 7 7 7 8 9 10 Final Capacity 12 | 4 4 4 4 4 4 4 8 8 8 8 8 8 8 8 8 8 8 8 8 8 8 8 8 8 8 8 8 8 8 8 8 8 8 8 8 8 8 8 8 12 12 12 Final Carried 9 | 2 4 4 4 2 4 4 7 8 8 8 8 8 8 8 8 8 8 8 7 8 8 8 8 8 8 7 7 7 8 8 8 7 7 7 8 8 8 8 8 9 8 9 Class Distribution -------------------- 38% | Machinist-Scout 18% | Hacker-Sprinter 12% | Hacker-Scout 11% | Sprinter 5% | Machinist-Sprinter 4% | Scavenger-Mutant 3% | Scavenger-Sprinter Dominant Class ---------------- Mutant | -10/Materials Mutant | -10/Mines Mutant | -9/Materials Scavenger-Mutant | -9/Mines Scavenger-Mutant | -9/Exiles Scavenger-Mutant | -8/Mines Scout | -8/Materials Sprinter | -7/Factory Sprinter | -7/Waste Sprinter | -7/Factory Sprinter | -7/Lower Caves Sprinter | -7/Lower Caves Sprinter | -7/Data Miner Sprinter | -6/Proximity Caves Hacker-Sprinter | -6/Factory Hacker-Sprinter | -6/Lower Caves Hacker-Sprinter | -6/Zion Hacker-Sprinter | -6/Deep Caves Hacker-Sprinter | -5/Proximity Caves Hacker-Sprinter | -5/Factory Hacker-Sprinter | -5/Waste Machinist-Sprinter | -5/Factory Machinist-Scout | -5/Extension Machinist-Scout | -5/Cetus Machinist-Scout | -5/Archives Machinist-Scout | -5/Hub_04(d) Hacker-Scout | -4/Factory Machinist-Scout | -4/Waste Machinist-Scout | -4/Factory Machinist-Scout | -4/Upper Caves Machinist-Scout | -4/Upper Caves Machinist-Scout | -4/Warlord Machinist-Scout | -3/Proximity Caves Machinist-Scout | -3/Research Machinist-Scout | -3/Armory Machinist-Scout | -3/Lab Hacker-Scout | -2/Research Hacker-Scout | -2/Quarantine Hacker-Scout | -2/Section 7 Machinist-Scout | -1/Access Machinist-Scout | -1/Command Machinist-Scout | -1/Access_0 Resources | -11 -10 -10 -9 -9 -9 -8 -8 -7 -7 -7 -7 -7 -7 -6 -6 -6 -6 -6 -5 -5 -5 -5 -5 -5 -5 -5 -4 -4 -4 -4 -4 -4 -3 -3 -3 -3 -2 -2 -2 -1 -1 -1 ----------- Run | Scr Mat Min Mat Min Exi Min Mat Fac Was Fac Low Low Dat Pro Fac Low Zio Dee Pro Fac Was Fac Ext Cet Arc Hub Fac Was Fac Upp Upp War Pro Res Arm Lab Res Qua Sec Acc Com Ac0 Matter Collected 4274 | 220 55 19 158 . . 38 211 325 93 84 71 19 . 10 60 . 28 . 57 20 . 143 153 26 34 97 30 215 219 30 . 153 47 258 20 . . 160 150 190 540 341 Remotely . | . . . . . . . . . . . . . . . . . . . . . . . . . . . . . . . . . . . . . . . . . . . Salvage Created 15011 | . 154 19 208 . . . 278 549 . 234 47 19 . . 221 . . 24 29 90 . 95 534 80 87 428 30 . 374 . . . 887 726 68 . . 385 637 580 5160 3068 Parts 624 | . 14 2 12 . . . 15 41 . 17 3 2 . . 5 . . . 2 3 . 1 26 3 3 23 3 . 8 . . . 18 32 3 . . 21 26 15 182 144 Haulers Intercepted 35 | . 2 . 3 . . . 3 2 . 1 . . . . 2 . . . . 1 . 1 . . . 3 . . 4 . . . . 6 . . . 1 3 3 . . Recyclers Shooed 1 | . . . . . . . . . . . . . . . . . . . . . . . . . . . . . . . . . . . . . . . . . 1 . Parts Field Recycled . | . . . . . . . . . . . . . . . . . . . . . . . . . . . . . . . . . . . . . . . . . . . Retrieved Matter . | . . . . . . . . . . . . . . . . . . . . . . . . . . . . . . . . . . . . . . . . . . . Parts Self-Destructed 34 | . . . . . . . . . . . . 1 . . . . . . . . . . . . . . . . . . . 20 13 . . . . . . . . . Prevented 14 | . . . . . . . . . . . . 1 . . . . . . . . . . . . . . . . . . . 13 . . . . . . . . . . Kills | -11 -10 -10 -9 -9 -9 -8 -8 -7 -7 -7 -7 -7 -7 -6 -6 -6 -6 -6 -5 -5 -5 -5 -5 -5 -5 -5 -4 -4 -4 -4 -4 -4 -3 -3 -3 -3 -2 -2 -2 -1 -1 -1 ------- Run | Scr Mat Min Mat Min Exi Min Mat Fac Was Fac Low Low Dat Pro Fac Low Zio Dee Pro Fac Was Fac Ext Cet Arc Hub Fac Was Fac Upp Upp War Pro Res Arm Lab Res Qua Sec Acc Com Ac0 Combat Hostiles Destroyed 111 | . 3 1 1 . . . . 9 . 2 . . . . . . . . . . . . 7 . 1 . . . . . . . 2 . . . . 4 7 2 42 30 Melee 95 | . . . . . . . . . . 1 . . . . . . . . . . . . 7 . . . . . . . . . 2 . . . . 4 7 2 42 30 Guns 10 | . 3 1 1 . . . . 3 . 1 . . . . . . . . . . . . . . 1 . . . . . . . . . . . . . . . . . AOE 6 | . . . . . . . . 6 . . . . . . . . . . . . . . . . . . . . . . . . . . . . . . . . . . Classes Destroyed 19 | . 2 . 1 . . . 3 4 . . 1 1 . . . . . . . . . . . . . 1 . . . . . . 1 . . . . . . 1 4 . Worker 18 | . . . . . . . 1 2 . 2 . . . . . . . . . . . . . . . 3 . . . . . . . . . . . . . . 10 . Builder 6 | . . . . . . . . 2 . 2 . . . . . . . . . . . . . . . 2 . . . . . . . . . . . . . . . . Tunneler 1 | . . . . . . . . . . . . . . . . . . . . . . . . . . 1 . . . . . . . . . . . . . . . . Hauler 35 | . 2 . 3 . . . 3 2 . 1 . . . . 2 . . . . 1 . 1 . . . 3 . . 4 . . . . 6 . . . 1 3 3 . . Recycler 10 | . . . . . . . 1 3 . 2 . . . . . . . . . . . . . . . . . . . . . . . . . . . . . . 4 . Minesweeper 1 | . . . . . . . . . . . . 1 . . . . . . . . . . . . . . . . . . . . . . . . . . . . . . Mechanic 2 | . . . . . . . . . . . . . . . . . . . . . . . . . . . . . . . . . . . . . . . . . 2 . Operator 8 | . . . . . . . . 1 . . . . . . . . . . . . . . . . . . 1 . . . . . . 1 1 . . 2 . . 2 . Drone 1 | . . . . . . . . . . . . . . . . . . . . . . . . . . . . . . . . . 1 . . . . . . . . . Watcher 22 | . . . . . . . 1 1 . 1 . . . . 1 . . . . . . . 2 . . 1 . . . . . . . 4 1 . . 2 . 3 5 . Swarmer 20 | . 3 1 . . . . . 3 . . . . . . . . . . . . . . . . . . . . . . . . . . . . . 4 4 . 5 . Grunt 15 | . . . . . . . . 3 . . . . . . . . . . . . . . 6 . . . . . . . . . 1 . . . . . . . 5 . Brawler 2 | . . . . . . . . . . . . . . . . . . . . . . . . . . . . . . . . . . . . . . . . . 2 . Researcher 1 | . . . . . . . . . . . 1 . . . . . . . . . . . . . . . . . . . . . . . . . . . . . . . Sentry 11 | . . . 1 . . . . . . 1 . . . . . . . . . . . . 1 . 1 . . . . . . . 1 . . . . . . . 6 . Hunter 7 | . . . . . . . . . . . . . . . . . . . . . . . . . . . . . . . . . . . . . . . . 2 5 . Programmer 17 | . . . . . . . . 3 . 1 . . . . . . . . . . . . . . . . . . . . . . . . . . . . 3 . 10 . M Guard 2 | . . . . . . . . . . . . . . . . . . . . . . . . . . . . . . . . . . . . . . . . . 2 . Enhanced Grunt 15 | . . . . . . . . . . . . . . . . . . . . . . . . . . . . . . . . . . . . . . . . . . 15 Enhanced Sentry 3 | . . . . . . . . . . . . . . . . . . . . . . . . . . . . . . . . . . . . . . . . . . 3 Enhanced Hunter 5 | . . . . . . . . . . . . . . . . . . . . . . . . . . . . . . . . . . . . . . . . . . 5 Combat Programmer 2 | . . . . . . . . . . . . . . . . . . . . . . . . . . . . . . . . . . . . . . . . . 2 . Executioner 1 | . . . . . . . . . . . . . . . . . . . . . . . . . . . . . . . . . . . . . . . . . 1 . Alpha 7 1 | . . . . . . . . . . . . . . . . . . . . . . . . . . . . . . . . . . . . . . . . . 1 . Decomposer 2 | . . . . . . . . . . . . . . . . . . . 2 . . . . . . . . . . . . . . . . . . . . . . . Savage 1 | . . . . . . . . . . . . . . . . . . . . . . . . . . . . . . . . . . . . . . . . . 1 . Best Kill Streak 20 | . 3 1 4 . . . 3 9 . 6 . 1 . . 1 . . . . 1 . 1 2 . 1 6 1 . 2 . . . 1 2 1 . . 2 4 4 20 6 Combat Bots Only 8 | . 3 1 1 . . . . 5 . 1 . . . . . . . . . . . . 2 . 1 . . . . . . . 1 . . . . 2 4 2 8 6 Max Kills in Single Turn 7 | . 1 1 1 . . . 1 7 . 6 1 1 . . 1 . . . 1 1 . 1 1 1 1 4 1 . 1 . . . 1 1 1 . . 1 1 1 1 1 Gunslinging . | . . . . . . . . . . . . . . . . . . . . . . . . . . . . . . . . . . . . . . . . . . . Exploded 2 | . . . . . . . . 2 . . . . . . . . . . . . . . . . . . . . . . . . . . . . . . . . . . Melee 1 | . . . . . . . . . . 1 . . . . . . . . . . . . 1 . . . . . . . . . 1 . . . . 1 1 1 1 1 Uniques/NPCs Destroyed 9 | . . . . . . . . . . . . . . . . . . . . . . . . 1 . . . . . . . . . . . . . . . . 1 7 A7 (-5/Cetus) MAIN.C Shell (-1/Command) MAIN.C (-1/Command) A2 (-1/Access_0) A4 (-1/Access_0) A6 (-1/Access_0) A8 (-1/Access_0) A5 (-1/Access_0) Architect (-1/Access_0) A3 (-1/Access_0) Combat | -11 -10 -10 -9 -9 -9 -8 -8 -7 -7 -7 -7 -7 -7 -6 -6 -6 -6 -6 -5 -5 -5 -5 -5 -5 -5 -5 -4 -4 -4 -4 -4 -4 -3 -3 -3 -3 -2 -2 -2 -1 -1 -1 -------- Run | Scr Mat Min Mat Min Exi Min Mat Fac Was Fac Low Low Dat Pro Fac Low Zio Dee Pro Fac Was Fac Ext Cet Arc Hub Fac Was Fac Upp Upp War Pro Res Arm Lab Res Qua Sec Acc Com Ac0 Damage Taken 9365 | . 304 35 126 14 . . 57 471 . 49 32 18 . . . . . 538 63 . . 150 115 . 51 142 . . 116 . 43 . 87 67 . . 87 176 521 198 1866 4039 Core 988 | . 105 8 11 . . . 13 76 . 11 . . . . . . . 135 31 . . 57 37 . . 43 . . 25 . 17 . 16 . . . . 22 14 22 150 195 Absorbed by Shields 5587 | . . . . . . . . . . . . . . . . . . . . . . . . . . . . . . . . . . . . . . 86 364 189 1498 3450 Core Remaining (%) 85 | 100 . 54 . . . 97 97 . . . . . . 87 . . . . 80 . . . . . . 86 . . . . . . 94 . . 100 . . 94 . . 55 Volleys Fired 237 | . 31 2 14 . . . 19 31 . 31 . . . . . . . . . . . . 15 . 6 20 . . 1 . . 11 2 2 . . . . 1 . 45 6 Largest 2 | . 2 2 2 . . . 2 2 . 1 . . . . . . . . . . . . 1 . 1 1 . . 1 . . 1 1 1 . . . . 1 . 2 1 Hottest 176 | . 40 40 46 . . . 50 50 . 30 . . . . . . . . . . . . 40 . 35 35 . . 35 . . 40 35 35 . . . . . . 176 40 Shots Fired 347 | . 58 4 28 . . . 38 55 . 31 . . . . . . . . . . . . 15 1 6 23 . . 1 . . 11 2 2 . . . . 1 . 65 6 Gun 255 | . 58 4 28 . . . 38 51 . 28 . . . . . . . . . . . . . 1 6 23 . . 1 . . . 2 2 . . . . . . 13 . Cannon 44 | . . . . . . . . . . . . . . . . . . . . . . . . . . . . . . . . . . . . . . . . . 44 . Launcher 7 | . . . . . . . . 4 . 3 . . . . . . . . . . . . . . . . . . . . . . . . . . . . . . . . Special 41 | . . . . . . . . . . . . . . . . . . . . . . . 15 . . . . . . . . 11 . . . . . . 1 . 8 6 Kinetic 255 | . 58 4 28 . . . 38 51 . 28 . . . . . . . . . . . . . 1 6 23 . . 1 . . . 2 2 . . . . . . 13 . Thermal . | . . . . . . . . . . . . . . . . . . . . . . . . . . . . . . . . . . . . . . . . . . . Explosive 7 | . . . . . . . . 4 . 3 . . . . . . . . . . . . . . . . . . . . . . . . . . . . . . . . Electromagnetic 44 | . . . . . . . . . . . . . . . . . . . . . . . . . . . . . . . . . . . . . . . . . 44 . Robot Hit Streak 27 | . 5 8 10 . . . 5 7 . 5 . . . . . . . . . . . . 7 . 12 13 . . . . . 12 . 13 . . . . 1 . 27 11 Robot Miss Streak 4 | . 3 . 2 . . . 3 2 . 3 . . . . . . . . . . . . 1 . . 4 . . . . . . . 1 . . . . . . 2 1 Penetration Max 1 | . . . . . . . . . . . . . . . . . . . . . . . . . . 1 . . . . . . . . . . . . . . 1 . Secondary Targets 1 | . 1 . . . . . . . . . . . . . . . . . . . . . . . . . . . . . . . . . . . . . . . . . Max Gunslinging Chain 1 | . 1 . . . . . . . . . . . . . . . . . . . . . . . . . . . . . . . . . . . . . . . . . Shots Hit Robots 806 | . 31 4 18 . . 2 18 38 . 11 1 1 . . 6 . . 2 2 4 . 2 25 9 6 15 2 . 16 . . 11 21 19 2 . 2 11 22 25 240 240 Core Hits 426 | . 11 2 9 . . . 8 28 . 11 1 1 . . 2 . . . 2 1 . 1 9 3 4 11 1 . 5 . . . 11 12 2 . . 8 10 8 97 168 Critical Hits 128 | . . . . . . . 2 . . . . . . . . . . . . . . . 1 1 1 1 . . 1 . . . . . . . . 1 4 5 54 57 Critical Kills 30 | . . . . . . . . . . . . . . . . . . . . . . . 1 . 1 1 . . . . . . . . . . . 1 2 2 15 7 Critical Parts Destroyed 71 | . . . . . . . 2 . . . . . . . . . . . . . . . . 1 . . . . 1 . . . . . . . . . 2 3 30 32 Melee Attacks 921 | . . . . . . 2 3 5 . 6 2 1 . . 14 . 7 9 9 4 . 16 17 9 . 18 6 . 21 1 1 3 30 37 20 3 7 34 53 48 238 297 Impact . | . . . . . . . . . . . . . . . . . . . . . . . . . . . . . . . . . . . . . . . . . . . Slashing 765 | . . . . . . 2 3 5 . 6 2 1 . . 14 . 3 9 . . . 11 16 9 . 15 . . . . . . . . . . . 33 53 48 238 297 Piercing 156 | . . . . . . . . . . . . . . . . . 4 . 9 4 . 5 1 . . 3 6 . 21 1 1 3 30 37 20 3 7 1 . . . . Sneak Attacks 87 | . . . . . . 2 . . . 1 1 1 . . 4 . . . 2 1 . 1 6 9 . 4 1 . 4 . . . 2 9 1 . 2 2 3 6 25 . Combat Hostiles 14 | . . . . . . . . . . . . . . . . . . . . . . . 5 . . 1 . . . . . . 2 . . . 1 . . . 5 . Follow-up Attacks . | . . . . . . . . . . . . . . . . . . . . . . . . . . . . . . . . . . . . . . . . . . . Damage Inflicted 65207 | . 187 30 185 . . 199 268 2181 . 1192 120 130 . . 600 . . 215 270 301 . 217 1248 830 116 1493 168 . 1295 . . . 2120 2127 183 . 326 1365 2362 3319 23247 18913 Guns 1928 | . 183 30 185 . . . 268 635 . 186 . . . . . . . . . . . . . . 116 207 . . . . . . . 51 . . . . . . 67 . Cannons 436 | . . . . . . . . . . . . . . . . . . . . . . . . . . . . . . . . . . . . . . . . . 436 . Explosions 2479 | . . . . . . . . 1546 . 661 . . . . . . . . . . . . . . . 272 . . . . . . . . . . . . . . . . Melee 59741 | . . . . . . 199 . . . 345 120 130 . . 600 . . 215 270 301 . 217 1248 830 . 1014 168 . 1295 . . . 2120 2076 183 . 326 1365 2362 3319 22744 18294 Ramming 623 | . 4 . . . . . . . . . . . . . . . . . . . . . . . . . . . . . . . . . . . . . . . . 619 Kinetic 1928 | . 183 30 185 . . . 268 635 . 186 . . . . . . . . . . . . . . 116 207 . . . . . . . 51 . . . . . . 67 . Thermal 1075 | . . . . . . . . 1075 . . . . . . . . . . . . . . . . . . . . . . . . . . . . . . . . . . Explosive 1132 | . . . . . . . . 471 . 661 . . . . . . . . . . . . . . . . . . . . . . . . . . . . . . . . Electromagnetic 708 | . . . . . . . . . . . . . . . . . . . . . . . . . . 272 . . . . . . . . . . . . . . 436 . Impact . | . . . . . . . . . . . . . . . . . . . . . . . . . . . . . . . . . . . . . . . . . . . Slashing 53002 | . . . . . . 199 . . . 345 120 130 . . 600 . . 215 . . . 217 1248 830 . 1014 . . . . . . . . . . . 1365 2362 3319 22744 18294 Piercing 6739 | . . . . . . . . . . . . . . . . . . . 270 301 . . . . . . 168 . 1295 . . . 2120 2076 183 . 326 . . . . . Highest Corruption 10 | . . . . . . . . 1 1 1 1 1 1 1 . . . 1 1 . 6 10 8 8 8 9 . . 1 1 1 2 . . . . . . . . . . Average Corruption 4 | . . . . . . . . 1 1 1 1 1 1 1 . . . 1 1 . 6 7 8 8 8 8 . . 1 1 1 1 . . . . . . . . . . Corruption Purged 2 | . . . . . . . . . . . . . . . . . . . . . . 2 . . . . . . . . . . . . . . . . . . . . Effects 78 | . . . . . . . . 2 . 1 1 . . 2 . . . 1 2 . 1 18 19 15 2 13 . . . . . 1 . . . . . . . . . . Message Errors 20 | . . . . . . . . 1 . . 1 . . 1 . . . . 1 . . 4 4 5 . 3 . . . . . . . . . . . . . . . . Matter Fused 4 | . . . . . . . . . . . . . . . . . . . . . . 2 1 1 . . . . . . . . . . . . . . . . . . Heat Flow Errors 7 | . . . . . . . . . . . . . . . . . . . . . . . 3 2 1 1 . . . . . . . . . . . . . . . . Energy Discharges 14 | . . . . . . . . . . . . . . 1 . . . . . . . 5 3 1 1 2 . . . . . 1 . . . . . . . . . . Parts Rejected 1 | . . . . . . . . . . . . . . . . . . . . . . 1 . . . . . . . . . . . . . . . . . . . . Data Loss (minor) 9 | . . . . . . . . . . 1 . . . . . . . . 1 . 1 2 2 2 . . . . . . . . . . . . . . . . . . Data Loss (major) 6 | . . . . . . . . . . . . . . . . . . . . . . 2 2 2 . . . . . . . . . . . . . . . . . . Misfires 4 | . . . . . . . . . . . . . . . . . . . . . . . . 1 . 3 . . . . . . . . . . . . . . . . Misdirections 2 | . . . . . . . . . . . . . . . . . . . . . . 2 . . . . . . . . . . . . . . . . . . . . Targeting Errors 11 | . . . . . . . . 1 . . . . . . . . . 1 . . . . 4 1 . 4 . . . . . . . . . . . . . . . . Overload Shots . | . . . . . . . . . . . . . . . . . . . . . . . . . . . . . . . . . . . . . . . . . . . Overflow Damage 7248 | . . . . . . 119 . 230 . 259 . . . . 168 . . 144 . 55 . 93 59 106 . 172 . . 170 . . . 120 180 . . 84 340 334 864 2928 823 Projectiles 1 | . . . . . . . . . . . . . . . . . . . . . . . . . . . . . . . . . . . . . . . . . 1 . Explosions 383 | . . . . . . . . 230 . 144 . . . . . . . . . . . . . . . 9 . . . . . . . . . . . . . . . . Melee 6864 | . . . . . . 119 . . . 115 . . . . 168 . . 144 . 55 . 93 59 106 . 163 . . 170 . . . 120 180 . . 84 340 334 864 2927 823 Knockbacks 13 | . . . . . . . . . . . . . . . . . . . . . . . . . . . . . . . . . . . . . . . . . . 13 Impact 13 | . . . . . . . . . . . . . . . . . . . . . . . . . . . . . . . . . . . . . . . . . . 13 Kinetic . | . . . . . . . . . . . . . . . . . . . . . . . . . . . . . . . . . . . . . . . . . . . Secondary . | . . . . . . . . . . . . . . . . . . . . . . . . . . . . . . . . . . . . . . . . . . . Self-Inflicted Damage 79 | . 2 . . . . . . . . . . . . . . . . . . . . . . . . 70 . . . . . . . . . . . . . . . 7 Shots 1 | . . . . . . . . . . . . . . . . . . . . . . . . . . 1 . . . . . . . . . . . . . . . . Rammed 88 | . 1 . . . . . . . . . . . . . . . . . . . . . . . . . . . . . . . . . . . . . . . . 87 Targets Rammed 90 | . 1 . . . . . . . . . . . . . . . . . . . . . . . . . . . . . . . . . . . . . . . . 89 Kicked 2 | . . . . . . . . . . . . . . . . . . . . . . . . . . . . . . . . . . . . . . . . . . 2 Crushed . | . . . . . . . . . . . . . . . . . . . . . . . . . . . . . . . . . . . . . . . . . . . Highest Temperature 274 | . 8 8 17 . . . 18 274 . 18 . 4 . . . . . 48 . . . . 249 232 226 86 . . 3 . 6 28 . 4 5 . 124 194 155 162 186 . Average Temperature 41 | . 4 5 8 . . . 9 45 . 8 . 2 . . . . . 24 . . . . 53 88 112 51 . . 3 . 6 10 . 2 2 . 40 49 44 47 44 . Received Heat Transfer 952 | . . 6 45 9 . . 36 84 . 12 . 9 . . . . . 117 . . . 45 30 . . . . . 18 . . . . 21 . . 18 4 20 . 110 368 Effects 1 | . . . . . . . . 1 . . . . . . . . . . . . . . . . . . . . . . . . . . . . . . . . . . Energy Bleed 1 | . . . . . . . . 1 . . . . . . . . . . . . . . . . . . . . . . . . . . . . . . . . . . Siege Activations . | . . . . . . . . . . . . . . . . . . . . . . . . . . . . . . . . . . . . . . . . . . . Robots Corrupted . | . . . . . . . . . . . . . . . . . . . . . . . . . . . . . . . . . . . . . . . . . . . Combat Hostiles . | . . . . . . . . . . . . . . . . . . . . . . . . . . . . . . . . . . . . . . . . . . . Parts Fried 2 | . . . . . . . . . . . . . . . . . . . . . . . . . . . . . . . . . . . . . . . . . 2 . Impact Corruptions 12 | . . . . . . . . . . . . . . . . . . . . . . . . . . . . . . . . . . . . . . . . . . 12 Robots Melted . | . . . . . . . . . . . . . . . . . . . . . . . . . . . . . . . . . . . . . . . . . . . Combat Hostiles . | . . . . . . . . . . . . . . . . . . . . . . . . . . . . . . . . . . . . . . . . . . . Parts Melted 1 | . . . . . . . . . . . . . . . . . . . . . . . . . . . . . . . . . . . . . . . . . 1 . Heat Transferred 700 | . . . . . . . . 700 . . . . . . . . . . . . . . . . . . . . . . . . . . . . . . . . . . Parts Sabotaged . | . . . . . . . . . . . . . . . . . . . . . . . . . . . . . . . . . . . . . . . . . . . Parts Stolen . | . . . . . . . . . . . . . . . . . . . . . . . . . . . . . . . . . . . . . . . . . . . Parts Stripped . | . . . . . . . . . . . . . . . . . . . . . . . . . . . . . . . . . . . . . . . . . . . Power Chain Reactions . | . . . . . . . . . . . . . . . . . . . . . . . . . . . . . . . . . . . . . . . . . . . Missiles Intercepted . | . . . . . . . . . . . . . . . . . . . . . . . . . . . . . . . . . . . . . . . . . . . Alert | -11 -10 -10 -9 -9 -9 -8 -8 -7 -7 -7 -7 -7 -7 -6 -6 -6 -6 -6 -5 -5 -5 -5 -5 -5 -5 -5 -4 -4 -4 -4 -4 -4 -3 -3 -3 -3 -2 -2 -2 -1 -1 -1 ------- Run | Scr Mat Min Mat Min Exi Min Mat Fac Was Fac Low Low Dat Pro Fac Low Zio Dee Pro Fac Was Fac Ext Cet Arc Hub Fac Was Fac Upp Upp War Pro Res Arm Lab Res Qua Sec Acc Com Ac0 Peak Influence 3103 | . 105 70 128 49 . . 122 413 144 813 . . . . 144 . . . . 12 49 400 283 381 300 554 314 174 770 . . . . 631 786 . 91 448 639 914 3103 . Average Influence 350 | . 44 44 61 49 . . 72 193 144 438 . . . . 55 . . . . 6 27 134 121 147 259 266 295 142 599 . . . . 165 459 . 60 265 403 616 1337 . Maximum Alert Level 5 | . . . . . . . . 2 . 3 . . . . . . . . . . . 2 1 1 1 2 1 . 3 . . . . 2 3 . . 2 2 3 5 . Low Security (%) 52 | 100 100 100 100 100 . 100 100 60 100 32 . . . . 100 . . . . 100 100 79 74 69 17 36 . 100 2 . . . . 81 . . 100 33 . . . . Level 1 18 | . . . . . . . . 25 . 20 . . . . . . . . . . . . 25 30 82 61 100 . 9 . . . . 11 31 . . 54 61 30 . . Level 2 12 | . . . . . . . . 13 . 5 . . . . . . . . . . . 20 . . . 1 . . 49 . . . . 7 51 . . 11 38 13 11 . Level 3 11 | . . . . . . . . . . 41 . . . . . . . . . . . . . . . . . . 38 . . . . . 16 . . . . 56 45 . Level 4 1 | . . . . . . . . . . . . . . . . . . . . . . . . . . . . . . . . . . . . . . . . . 11 . Level 5 2 | . . . . . . . . . . . . . . . . . . . . . . . . . . . . . . . . . . . . . . . . . 20 . High Security 1 | . . . . . . . . . . . . . . . . . . . . . . . . . . . . . . . . . . . . . . . . . 11 . Max Security . | . . . . . . . . . . . . . . . . . . . . . . . . . . . . . . . . . . . . . . . . . . . Squads Dispatched 46 | . . . . . . . . 8 . 5 . . . . 2 . . . . 1 . 1 . . . 3 . . 5 . . . . 2 2 . 1 . 3 . 13 . Investigation 6 | . . . . . . . . 2 . . . . . . 2 . . . . . . 1 . . . . . . . . . . . 1 . . . . . . . . Extermination 9 | . . . . . . . . 2 . 1 . . . . . . . . . 1 . . . . . . . . 1 . . . . . 1 . . . . . 3 . Reinforcement 18 | . . . . . . . . 3 . 1 . . . . . . . . . . . . . . . 3 . . 4 . . . . 1 . . 1 . 3 . 2 . Assault 9 | . . . . . . . . . . . . . . . . . . . . . . . . . . . . . . . . . . . 1 . . . . . 8 . Garrison 4 | . . . . . . . . 1 . 3 . . . . . . . . . . . . . . . . . . . . . . . . . . . . . . . . Intercept . | . . . . . . . . . . . . . . . . . . . . . . . . . . . . . . . . . . . . . . . . . . . Construction Impeded 4 | . . . . . . . . 1 . . . . . . . . . . . . . . . . . 2 . . 1 . . . . . . . . . . . . . Haulers Reinforced 7 | . . . . . . . . 1 . 1 . . . . . . . . . . . . . . . 1 . . 3 . . . . . . . . . 1 . . . Stealth | -11 -10 -10 -9 -9 -9 -8 -8 -7 -7 -7 -7 -7 -7 -6 -6 -6 -6 -6 -5 -5 -5 -5 -5 -5 -5 -5 -4 -4 -4 -4 -4 -4 -3 -3 -3 -3 -2 -2 -2 -1 -1 -1 --------- Run | Scr Mat Min Mat Min Exi Min Mat Fac Was Fac Low Low Dat Pro Fac Low Zio Dee Pro Fac Was Fac Ext Cet Arc Hub Fac Was Fac Upp Upp War Pro Res Arm Lab Res Qua Sec Acc Com Ac0 Distress Signals 52 | . . . 2 . . . 1 2 . 2 . . . . . . . . . . . . 1 2 . 1 . . 4 . . . 9 6 . . 4 . 2 . 16 . Communications Jammed . | . . . . . . . . . . . . . . . . . . . . . . . . . . . . . . . . . . . . . . . . . . . Distress Signals . | . . . . . . . . . . . . . . . . . . . . . . . . . . . . . . . . . . . . . . . . . . . Times Spotted 450 | . 5 5 15 3 . . 7 33 . 10 1 8 . . 10 . . 4 4 1 5 23 23 11 . 11 3 7 15 . 8 . 4 8 2 . 6 17 47 8 74 72 Peak Tracking Total 25 | . 4 3 14 3 . . 5 9 . 6 1 5 . . 3 . . 9 4 1 6 12 5 5 1 9 1 6 10 . 8 . 2 3 1 . 3 6 12 4 10 25 Tactical Retreats 68 | . 1 1 . 1 . . 2 7 . . . 3 . . 1 . . . . . . 5 4 . . . . 1 2 . 3 . 1 3 . . 2 3 8 2 3 15 Traps | -11 -10 -10 -9 -9 -9 -8 -8 -7 -7 -7 -7 -7 -7 -6 -6 -6 -6 -6 -5 -5 -5 -5 -5 -5 -5 -5 -4 -4 -4 -4 -4 -4 -3 -3 -3 -3 -2 -2 -2 -1 -1 -1 ------- Run | Scr Mat Min Mat Min Exi Min Mat Fac Was Fac Low Low Dat Pro Fac Low Zio Dee Pro Fac Was Fac Ext Cet Arc Hub Fac Was Fac Upp Upp War Pro Res Arm Lab Res Qua Sec Acc Com Ac0 Traps Triggered 12 | . . . . . . . . 1 . . . . . . . . . . . 1 . 1 2 . . . 1 . 1 . . . . 2 . . . . 2 . 1 . Indirectly . | . . . . . . . . . . . . . . . . . . . . . . . . . . . . . . . . . . . . . . . . . . . Trap Hack Attempts . | . . . . . . . . . . . . . . . . . . . . . . . . . . . . . . . . . . . . . . . . . . . Triggered . | . . . . . . . . . . . . . . . . . . . . . . . . . . . . . . . . . . . . . . . . . . . Disarmed . | . . . . . . . . . . . . . . . . . . . . . . . . . . . . . . . . . . . . . . . . . . . Reprogrammed 6 | . . . . . . . . . . . . . . . . . . . . . . . . . . . . . . . . . . . . . . . . . 6 . Reused . | . . . . . . . . . . . . . . . . . . . . . . . . . . . . . . . . . . . . . . . . . . . Traps Extracted . | . . . . . . . . . . . . . . . . . . . . . . . . . . . . . . . . . . . . . . . . . . . Installed . | . . . . . . . . . . . . . . . . . . . . . . . . . . . . . . . . . . . . . . . . . . . Triggered 18 | . . . . . . . . . . . . 9 . . . 1 . . . . . . . . . . . . . . . 6 1 . . . . . . . 1 . Machines | -11 -10 -10 -9 -9 -9 -8 -8 -7 -7 -7 -7 -7 -7 -6 -6 -6 -6 -6 -5 -5 -5 -5 -5 -5 -5 -5 -4 -4 -4 -4 -4 -4 -3 -3 -3 -3 -2 -2 -2 -1 -1 -1 ---------- Run | Scr Mat Min Mat Min Exi Min Mat Fac Was Fac Low Low Dat Pro Fac Low Zio Dee Pro Fac Was Fac Ext Cet Arc Hub Fac Was Fac Upp Upp War Pro Res Arm Lab Res Qua Sec Acc Com Ac0 Machines Disabled 53 | . . . . . . . 1 4 . 7 . . . . . . . 1 . . . . . 1 . 3 1 . 3 . . . 1 . 6 1 . 7 6 . 3 8 Max in Single Turn 6 | . . . . . . . 1 4 . 6 . . . . . . . 1 . . . . . . . 2 1 . 1 . . . 1 . 1 1 . 1 1 . 2 1 Garrison Access 13 | . . . . . . . . 1 . 1 . . . . 1 . . . . 1 . 1 . . . . 1 . . . . . . 2 . . 1 1 1 2 . . Phase Generator 1 | . . . . . . . . . . . . . . . . . . . . . . . . . . . . . . . . . . . . . . . . . 1 . Network Hub 1 | . . . . . . . . . . . . . . . . . . . . . . . . . . 1 . . . . . . . . . . . . . . . . Machines Sabotaged . | . . . . . . . . . . . . . . . . . . . . . . . . . . . . . . . . . . . . . . . . . . . Garrisons Compromised . | . . . . . . . . . . . . . . . . . . . . . . . . . . . . . . . . . . . . . . . . . . . Overloaded Fab Kills . | . . . . . . . . . . . . . . . . . . . . . . . . . . . . . . . . . . . . . . . . . . . Fab Network Shutdowns 4 | . . . . . . . . . . . . . . . . . . . . . . 1 . . . . . . . . . . . 1 1 . . . . 1 . . Hacking | -11 -10 -10 -9 -9 -9 -8 -8 -7 -7 -7 -7 -7 -7 -6 -6 -6 -6 -6 -5 -5 -5 -5 -5 -5 -5 -5 -4 -4 -4 -4 -4 -4 -3 -3 -3 -3 -2 -2 -2 -1 -1 -1 --------- Run | Scr Mat Min Mat Min Exi Min Mat Fac Was Fac Low Low Dat Pro Fac Low Zio Dee Pro Fac Was Fac Ext Cet Arc Hub Fac Was Fac Upp Upp War Pro Res Arm Lab Res Qua Sec Acc Com Ac0 Machines Accessed 125 | . 2 . 1 . 2 . 3 10 . 6 . 1 4 . 11 . . . 1 3 . 6 3 2 . 2 3 . 3 2 . 6 . 12 4 1 6 6 7 8 8 2 Terminals 74 | . 2 . 1 . . . 3 7 . 3 . 1 . . 7 . . . 1 1 . 1 3 2 . 2 2 . 2 1 . . . 7 3 . 4 3 5 5 8 . Fabricators 13 | . . . . . . . . 1 . 1 . . . . 3 . . . . 1 . 2 . . . . . . 1 . . . . 1 1 . 1 . . 1 . . Repair Stations 1 | . . . . . . . . . . . . . . . . . . . . . . 1 . . . . . . . . . . . . . . . . . . . . Recycling Units . | . . . . . . . . . . . . . . . . . . . . . . . . . . . . . . . . . . . . . . . . . . . Scanalyzers 7 | . . . . . . . . 1 . . . . . . . . . . . . . 1 . . . . . . . . . . . 2 . . . 2 1 . . . Garrison Access 14 | . . . . . . . . 1 . 2 . . . . 1 . . . . 1 . 1 . . . . 1 . . . . . . 2 . . 1 1 1 2 . . Total Hacks 397 | . 8 . 3 . 2 . 8 25 . 14 . 2 25 . 30 . . . 3 15 . 22 12 4 . 3 9 . 14 4 . 15 . 39 26 7 20 13 13 21 21 19 Successful 240 | . 4 . 1 . 2 . 2 12 . 3 . . 25 . 14 . . . 2 14 . 15 6 3 . 3 5 . 6 2 . 15 . 16 12 7 11 8 10 9 14 19 Failed 156 | . 4 . 2 . . . 6 12 . 11 . 2 . . 16 . . . 1 1 . 7 6 1 . . 4 . 8 2 . . . 23 14 . 9 5 3 12 7 . Catastrophic 21 | . . . . . . . 1 3 . . . . . . 4 . . . 1 . . . 2 . . . 1 . 1 . . . . 1 1 . 2 1 . 3 . . Database Lockouts 1 | . . . . . . . . 1 . . . . . . . . . . . . . . . . . . . . . . . . . . . . . . . . . . Manual 157 | . 2 . 3 . 2 . 8 8 . 3 . 2 . . 14 . . . 3 6 . 2 9 4 . 1 4 . 7 3 . 1 . 19 9 . 13 4 3 15 12 . Terminals 217 | . 8 . 3 . . . 8 18 . 6 . 2 . . 17 . . . 3 5 . 2 12 4 . 3 8 . 8 3 . . . 24 13 . 16 7 11 15 21 . Fabricators 62 | . . . . . . . . 3 . 1 . . . . 12 . . . . 9 . 7 . . . . . . 6 . . . . 5 13 . 3 . . 3 . . Repair Stations 2 | . . . . . . . . . . . . . . . . . . . . . . 2 . . . . . . . . . . . . . . . . . . . . Recycling Units . | . . . . . . . . . . . . . . . . . . . . . . . . . . . . . . . . . . . . . . . . . . . Scanalyzers 23 | . . . . . . . . 3 . . . . . . . . . . . . . 8 . . . . . . . . . . . 6 . . . 5 1 . . . Garrison Access 24 | . . . . . . . . 1 . 7 . . . . 1 . . . . 1 . 3 . . . . 1 . . . . . . 4 . . 1 1 1 3 . . Terminal Hacks 142 | . 3 . . . 2 . 1 6 . 2 . . 25 . 4 . . . 2 4 . . 4 2 . 2 3 . . 2 . 15 . 7 2 7 6 2 7 4 11 19 Record 45 | . . . . . 1 . . . . . . . 11 . . . . . . . . . . . . . . . . . . 8 . 1 . 7 . . . . . 17 Part Schematic 14 | . . . . . . . . 2 . . . . 4 . 1 . . . 2 . . . . . . . . . . . . . . 2 . . 2 1 . . . . Robot Schematic 8 | . . . . . . . . . . . . . 7 . . . . . . . . . . . . . . . . . . . . . . . . . . 1 . . Robot Analysis 3 | . . . . . . . . . . . . . . . . . . . . . . . . . . . . . . 1 . . . . . . . . . 2 . . Prototype ID Bank 9 | . . . . . . . . . . . . . 3 . . . . . . 1 . . . . . . . . . . . 5 . . . . . . . . . . Open Door 7 | . . . . . . . . . . . . . . . . . . . . . . . . 1 . . . . . 1 . 2 . . 1 . . . 2 . . . Branch Access Points 7 | . 1 . . . . . 1 1 . . . . . . 1 . . . . . . . . . . . 1 . . . . . . 1 . . . . . 1 . . Machine Index 2 | . . . . . . . . . . . . . . . . . . . . . . . 1 . . . . . . . . . . . . . . . 1 . . . Terminal Index 3 | . . . . . . . . . . . . . . . . . . . . . . . . . . . . . . . . . . 1 . . 1 . . . 1 . Fabricator Index 3 | . . . . . . . . . . 1 . . . . 1 . . . . . . . . . . . . . . . . . . 1 . . . . . . . . Alert Level 2 | . . . . . . . . . . . . . . . . . . . . . . . 1 . . . . . . . . . . . . . . . . . 1 . Unreport Threat 12 | . . . . . . . . . . . . . . . . . . . . . . . 2 1 . . . . . . . . . . . . 2 . 2 . 5 . Locate Traps 8 | . 1 . . . . . . 2 . 1 . . . . . . . . . 1 . . . . . 1 1 . . . . . . . . . . . . . 1 . Reprogram Traps 1 | . . . . . . . . . . . . . . . . . . . . . . . . . . . . . . . . . . . . . . . . . 1 . Recall Extermination 1 | . . . . . . . . . . . . . . . . . . . . . . . . . . . . . . . . . . . 1 . . . . . . . Hauler Manifests 10 | . 1 . . . . . . 1 . . . . . . 1 . . . . 1 . . . . . 1 1 . . . . . . 1 . . 1 1 1 . . . Registered Prototypes 2 | . . . . . . . . . . . . . . . . . . . . 1 . . . . . . . . . . . . . . . . . . 1 . . . EX-Prototype ID Bank 1 | . . . . . 1 . . . . . . . . . . . . . . . . . . . . . . . . . . . . . . . . . . . . . Disengage Seal 2 | . . . . . . . . . . . . . . . . . . . . . . . . . . . . . . . . . . . . . . . . . 2 . Gate Test 138-A 1 | . . . . . . . . . . . . . . . . . . . . . . . . . . . . . . . . . . . . . . . . . . 1 Gate Test 138-B 1 | . . . . . . . . . . . . . . . . . . . . . . . . . . . . . . . . . . . . . . . . . . 1 Fabricator Hacks 34 | . . . . . . . . 2 . . . . . . 7 . . . . 6 . 4 . . . . . . 3 . . . . 2 6 . 2 . . 2 . . Network Status 1 | . . . . . . . . . . . . . . . . . . . . 1 . . . . . . . . . . . . . . . . . . . . . . Load Schematic 13 | . . . . . . . . 1 . . . . . . 3 . . . . 2 . 2 . . . . . . 1 . . . . 1 1 . 1 . . 1 . . Build 20 | . . . . . . . . 1 . . . . . . 4 . . . . 3 . 2 . . . . . . 2 . . . . 1 5 . 1 . . 1 . . Repair Station Hacks 2 | . . . . . . . . . . . . . . . . . . . . . . 2 . . . . . . . . . . . . . . . . . . . . Scan Component 1 | . . . . . . . . . . . . . . . . . . . . . . 1 . . . . . . . . . . . . . . . . . . . . Repair 1 | . . . . . . . . . . . . . . . . . . . . . . 1 . . . . . . . . . . . . . . . . . . . . Recycling Unit Hacks . | . . . . . . . . . . . . . . . . . . . . . . . . . . . . . . . . . . . . . . . . . . . Scanalyzer 17 | . . . . . . . . 2 . . . . . . . . . . . . . 7 . . . . . . . . . . . 3 . . . 4 1 . . . Insert Component 11 | . . . . . . . . 1 . . . . . . . . . . . . . 3 . . . . . . . . . . . 2 . . . 4 1 . . . Analyze 6 | . . . . . . . . 1 . . . . . . . . . . . . . 4 . . . . . . . . . . . 1 . . . . . . . . Garrison Access Hacks 13 | . . . . . . . . 1 . 1 . . . . 1 . . . . 1 . 1 . . . . 1 . . . . . . 2 . . 1 1 1 2 . . Seal Access 13 | . . . . . . . . 1 . 1 . . . . 1 . . . . 1 . 1 . . . . 1 . . . . . . 2 . . 1 1 1 2 . . Unauthorized Hacks 32 | . 1 . 1 . . . 1 1 . . . . . . 2 . . . . 3 . 1 2 1 . 1 1 . 3 . . . . 2 4 . 2 1 1 1 3 . Terminals 26 | . 1 . 1 . . . 1 1 . . . . . . 2 . . . . 1 . 1 2 1 . 1 1 . 1 . . . . 2 2 . 2 1 1 1 3 . Assimilate 9 | . . . 1 . . . . . . . . . . . 1 . . . . . . 1 . . . . 1 . . . . . . 1 1 . 1 . 1 . 1 . Botnet 14 | . 1 . . . . . 1 1 . . . . . . 1 . . . . 1 . . 1 1 . 1 . . 1 . . . . 1 1 . 1 1 . 1 . . Disrupt 3 | . . . . . . . . . . . . . . . . . . . . . . . 1 . . . . . . . . . . . . . . . . . 2 . Fabricators 6 | . . . . . . . . . . . . . . . . . . . . 2 . . . . . . . . 2 . . . . . 2 . . . . . . . Prioritize 3 | . . . . . . . . . . . . . . . . . . . . 1 . . . . . . . . 1 . . . . . 1 . . . . . . . Siphon 3 | . . . . . . . . . . . . . . . . . . . . 1 . . . . . . . . 1 . . . . . 1 . . . . . . . Repair Stations . | . . . . . . . . . . . . . . . . . . . . . . . . . . . . . . . . . . . . . . . . . . . Recycling Units . | . . . . . . . . . . . . . . . . . . . . . . . . . . . . . . . . . . . . . . . . . . . Scanalyzers . | . . . . . . . . . . . . . . . . . . . . . . . . . . . . . . . . . . . . . . . . . . . Garrison Access . | . . . . . . . . . . . . . . . . . . . . . . . . . . . . . . . . . . . . . . . . . . . Data Cores Recovered 2 | . . . . . . . . . . . . . . . . . . . . . . . 1 . . . . . . . . . . . . . . . . . 1 . Used 1 | . . . . . . . . . . . . . . . . . . . . . . . . . . . . . . . . . . . . . . . . . 1 . Hacking Detections 73 | . 2 . 1 . . . 3 8 . 6 . 1 . . 10 . . . 1 1 . 4 1 1 . . 1 . 2 1 . . . 8 2 . 3 3 3 6 5 . Full Trace Events 5 | . . . . . . . . 1 . . . . . . 2 . . . . . . 1 . . . . . . . . . . . 1 . . . . . . . . Feedback Events 1 | . . . . . . . . . . . . . . . . . . . . . . 1 . . . . . . . . . . . . . . . . . . . . Hackware Fried 1 | . . . . . . . . . . . . . . . . . . . . . . 1 . . . . . . . . . . . . . . . . . . . . Feedback Blocked . | . . . . . . . . . . . . . . . . . . . . . . . . . . . . . . . . . . . . . . . . . . . Robot Schematics Acquired 8 | . . . . . . . . . . . . . 7 . . . . . . . . . . . . . . . . . . . . . . . . . . 1 . . Robots Built . | . . . . . . . . . . . . . . . . . . . . . . . . . . . . . . . . . . . . . . . . . . . Matter . | . . . . . . . . . . . . . . . . . . . . . . . . . . . . . . . . . . . . . . . . . . . Time . | . . . . . . . . . . . . . . . . . . . . . . . . . . . . . . . . . . . . . . . . . . . Total Robot Build Rating . | . . . . . . . . . . . . . . . . . . . . . . . . . . . . . . . . . . . . . . . . . . . Part Schematics Acquired 17 | . . . . . . . . 3 . . . . 4 . 1 . . . 2 . . 2 . . . . . . . . . . . 2 . . 2 1 . . . . Parts Built 18 | . . . . . . . . 1 . . . . . . 2 . . . . 3 . 2 . . . . . . 2 . . . . 1 5 . 1 . . 1 . . Matter 5226 | . . . . . . . . 168 . . . . . . 537 . . . . 654 . 636 . . . . . . 672 . . . . 285 1440 . 417 . . 417 . . Time 1601 | . . . . . . . . 84 . . . . . . 210 . . . . 277 . 169 . . . . . . 153 . . . . 50 510 . 74 . . 74 . . Total Part Build Rating 117 | . . . . . . . . 4 . . . . . . 9 . . . . 13 . 12 . . . . . . 16 . . . . 5 40 . 9 . . 9 . . Parts Repaired 1 | . . . . . . . . . . . . . . . . . . . . . . 1 . . . . . . . . . . . . . . . . . . . . Time 68 | . . . . . . . . . . . . . . . . . . . . . . 68 . . . . . . . . . . . . . . . . . . . . Parts Recycled . | . . . . . . . . . . . . . . . . . . . . . . . . . . . . . . . . . . . . . . . . . . . Recycled Matter . | . . . . . . . . . . . . . . . . . . . . . . . . . . . . . . . . . . . . . . . . . . . Retrieved Matter . | . . . . . . . . . . . . . . . . . . . . . . . . . . . . . . . . . . . . . . . . . . . Retrieved Components . | . . . . . . . . . . . . . . . . . . . . . . . . . . . . . . . . . . . . . . . . . . . Parts Scanalyzed 5 | . . . . . . . . 1 . . . . . . . . . . . . . 2 . . . . . . . . . . . 2 . . . . . . . . Part Schematics Acquired 4 | . . . . . . . . 1 . . . . . . . . . . . . . 2 . . . . . . . . . . . 1 . . . . . . . . Parts Damaged 1 | . . . . . . . . . . . . . . . . . . . . . . 1 . . . . . . . . . . . . . . . . . . . . Bothacking | -11 -10 -10 -9 -9 -9 -8 -8 -7 -7 -7 -7 -7 -7 -6 -6 -6 -6 -6 -5 -5 -5 -5 -5 -5 -5 -5 -4 -4 -4 -4 -4 -4 -3 -3 -3 -3 -2 -2 -2 -1 -1 -1 ------------ Run | Scr Mat Min Mat Min Exi Min Mat Fac Was Fac Low Low Dat Pro Fac Low Zio Dee Pro Fac Was Fac Ext Cet Arc Hub Fac Was Fac Upp Upp War Pro Res Arm Lab Res Qua Sec Acc Com Ac0 Used RIF Installer . | . . . . . . . . . . . . . . . . . . . . . . . . . . . . . . . . . . . . . . . . . . . Robots Hacked 4 | . . . . . . . . . . . . . . . . . . . . . . . . . . . . . . . . 3 . . . . . . . . 1 . Non-combat . | . . . . . . . . . . . . . . . . . . . . . . . . . . . . . . . . . . . . . . . . . . . Combat 4 | . . . . . . . . . . . . . . . . . . . . . . . . . . . . . . . . 3 . . . . . . . . 1 . Robot Hacks Applied 4 | . . . . . . . . . . . . . . . . . . . . . . . . . . . . . . . . 3 . . . . . . . . 1 . parse_system 4 | . . . . . . . . . . . . . . . . . . . . . . . . . . . . . . . . 3 . . . . . . . . 1 . Manual 1 | . . . . . . . . . . . . . . . . . . . . . . . . . . . . . . . . . . . . . . . . . 1 . Relay Couplers Released . | . . . . . . . . . . . . . . . . . . . . . . . . . . . . . . . . . . . . . . . . . . . Robots Rewired 12 | . . . . . . . . 1 . . . . . . . . . . . . . . 6 . . . . . . . . 4 . . . . . . . . 1 . Allies Hacked 3 | . . . . . . . . . . . . . . . . . . . . . . . . . . . . . . . . . . . . . . . . . 3 . Hacks Repelled . | . . . . . . . . . . . . . . . . . . . . . . . . . . . . . . . . . . . . . . . . . . . Allies | -11 -10 -10 -9 -9 -9 -8 -8 -7 -7 -7 -7 -7 -7 -6 -6 -6 -6 -6 -5 -5 -5 -5 -5 -5 -5 -5 -4 -4 -4 -4 -4 -4 -3 -3 -3 -3 -2 -2 -2 -1 -1 -1 -------- Run | Scr Mat Min Mat Min Exi Min Mat Fac Was Fac Low Low Dat Pro Fac Low Zio Dee Pro Fac Was Fac Ext Cet Arc Hub Fac Was Fac Upp Upp War Pro Res Arm Lab Res Qua Sec Acc Com Ac0 Total Allies 149 | . . . 1 . . . . 1 20 . . . . . 1 . 2 . . . . 1 18 5 . . 1 20 . . . 4 . 1 1 . 1 . 1 . 71 . Largest Group 60 | . . . 1 . . . . 1 20 20 3 . . . 1 . 2 2 . . . 1 10 14 9 8 1 20 17 . . 4 4 1 1 . 1 . 1 . 60 . Highest-Rated Group 2794 | . . . 10 . . . . 32 526 526 100 . . . 10 . 51 51 . . . 26 408 820 488 444 10 742 646 . . 225 225 15 26 . 44 . 56 . 2794 . Highest-Rated Ally 222 | . . . 10 . . . . 32 35 35 35 . . . 10 . 31 31 . . . 26 156 156 94 94 10 50 50 . . 60 60 15 26 . 44 . 56 . 222 . Total Orders 5 | . . . . . . 1 . 1 . . . . . . . . . . . . . . . . . . . . . . . . . . . . . . 2 . 1 . STAY 2 | . . . . . . . . . . . . . . . . . . . . . . . . . . . . . . . . . . . . . . . 1 . 1 . FOLLOW 1 | . . . . . . . . . . . . . . . . . . . . . . . . . . . . . . . . . . . . . . . 1 . . . COLLECT 2 | . . . . . . 1 . 1 . . . . . . . . . . . . . . . . . . . . . . . . . . . . . . . . . . Ally Attacks 867 | . . . . . . . . 7 . 75 8 . . . . . . 6 . . . . 53 92 15 13 . 99 78 . . . 9 . . . . . 2 . 410 . Total Damage 27485 | . . . . . . . . 184 . 1880 345 . . . . . . 79 . . . . 1038 2767 430 521 . 3558 2474 . . . 273 . . . . . . . 13936 . Kills 128 | . . . . . . . . 3 . 15 . . . . . . . . . . . . 7 16 3 5 . 8 16 . . . 2 . . . . . . . 53 . Allies Corrupted 4 | . . . . . . . . . . . . . . . . . . . . . . . . . . . . . . . . . . . . . . . . . 4 . Allies Melted 1 | . . . . . . . . 1 . . . . . . . . . . . . . . . . . . . . . . . . . . . . . . . . . . Field Lobotomies 3 | . . . . . . . . . . . . . . . . . . . . . . . . . . . . . . . . . . . . . . . 1 . 2 . Intel | -11 -10 -10 -9 -9 -9 -8 -8 -7 -7 -7 -7 -7 -7 -6 -6 -6 -6 -6 -5 -5 -5 -5 -5 -5 -5 -5 -4 -4 -4 -4 -4 -4 -3 -3 -3 -3 -2 -2 -2 -1 -1 -1 ------- Run | Scr Mat Min Mat Min Exi Min Mat Fac Was Fac Low Low Dat Pro Fac Low Zio Dee Pro Fac Was Fac Ext Cet Arc Hub Fac Was Fac Upp Upp War Pro Res Arm Lab Res Qua Sec Acc Com Ac0 Robot Analysis Total 3 | . . . . . . . . . . . . . . . . . . . . . . . . . . . . . . 1 . . . . . . . . . 2 . . Derelict Logs Recovered 7 | . . . . 1 . . . . . . 1 1 . . . . 1 . 1 . . . . . . . . . . 1 1 . . . . . . . . . . . Drone Launches 2 | . . . . . . 1 . 1 . . . . . . . . . . . . . . . . . . . . . . . . . . . . . . . . . . Drone Recoveries 1 | . . . . . . 1 . . . . . . . . . . . . . . . . . . . . . . . . . . . . . . . . . . . . Exploration | -11 -10 -10 -9 -9 -9 -8 -8 -7 -7 -7 -7 -7 -7 -6 -6 -6 -6 -6 -5 -5 -5 -5 -5 -5 -5 -5 -4 -4 -4 -4 -4 -4 -3 -3 -3 -3 -2 -2 -2 -1 -1 -1 ------------- Run | Scr Mat Min Mat Min Exi Min Mat Fac Was Fac Low Low Dat Pro Fac Low Zio Dee Pro Fac Was Fac Ext Cet Arc Hub Fac Was Fac Upp Upp War Pro Res Arm Lab Res Qua Sec Acc Com Ac0 Turns Passed 15517 | 26 180 65 82 72 191 206 444 604 109 349 121 225 22 275 876 23 643 89 688 332 19 743 628 352 103 265 143 122 360 119 415 443 328 657 755 63 210 336 566 331 1240 1697 Spaces Moved 29522 | 43 178 132 103 171 505 491 608 1498 253 650 273 335 85 563 1735 83 1081 191 654 488 68 599 755 216 71 329 413 148 702 451 329 926 455 2087 1104 236 478 1153 1530 1077 3202 3073 Core 140 | 43 97 . . . . . . . . . . . . . . . . . . . . . . . . . . . . . . . . . . . . . . . . . Treads 25 | . . . . . . . . . . . . . . . . . . . . . . . . . . . . . . . . . . . . . . . . . . 25 Legs 1 | . . . . . . . . . . . . . . . . . . . . . . . . . . . . . . . . . . . . . . . . . . 1 Wheels . | . . . . . . . . . . . . . . . . . . . . . . . . . . . . . . . . . . . . . . . . . . . Hover . | . . . . . . . . . . . . . . . . . . . . . . . . . . . . . . . . . . . . . . . . . . . Flight 29356 | . 81 132 103 171 505 491 608 1498 253 650 273 335 85 563 1735 83 1081 191 654 488 68 599 755 216 71 329 413 148 702 451 329 926 455 2087 1104 236 478 1153 1530 1077 3202 3047 Fastest Speed 13 | 50 37 37 34 37 37 37 29 26 26 26 26 26 26 26 26 23 23 23 29 23 23 21 21 21 21 21 21 21 16 16 16 16 16 14 14 16 13 13 13 13 13 13 Average Speed 19 | 50 44 37 35 37 37 37 30 26 26 26 26 26 26 26 26 23 23 23 29 24 23 22 21 21 21 21 21 21 18 16 16 16 16 14 15 16 13 13 13 13 13 14 Slowest Speed 185 | 50 50 37 37 37 37 37 37 26 26 26 26 26 26 26 26 26 23 99 29 29 23 23 21 21 21 21 21 21 21 16 16 16 16 84 16 16 13 13 13 13 13 185 Overloaded Moves . | . . . . . . . . . . . . . . . . . . . . . . . . . . . . . . . . . . . . . . . . . . . Propulsion Burnouts . | . . . . . . . . . . . . . . . . . . . . . . . . . . . . . . . . . . . . . . . . . . . Robots Hopped 140 | . . 2 . 3 . 9 11 30 . 9 . . . . 3 . . . 1 2 . 5 9 . 4 . . . 5 . 5 6 . 4 2 . 1 . 12 11 4 2 Cave-ins Triggered 1 | . . . . . . . . . . . . . . . . . . . . . . . . . . . . . . . . . . . . . . . . . . 1 Teleports 2 | . . . . . . . . . . . . . . . . . . . . . . . . . . . . . . . . . . . . . . . . . 1 1 Exploration Rate (%) 54 | 3 30 32 17 33 77 92 36 87 95 20 50 52 71 65 47 18 85 50 80 17 84 20 85 70 65 38 10 84 20 64 61 90 62 55 53 98 11 76 66 24 56 82 Regions Visited 42 Branch Regions 26 Pre-discovered Areas 5 | . . . . . 1 . . . . . . . 1 . . . 2 . . . . . . . . . . . . 1 . . . . . . . . . . . . Known Exits Taken 28 | . 1 . . 1 . . . . . 1 1 1 1 1 1 . 1 1 1 . . 1 1 1 1 1 . . 1 1 1 1 1 1 1 1 1 1 1 1 . . Unknown Exits Taken 8 | 1 . 1 1 . 1 1 1 . . . . . . . . 1 . . . . . . . . . . . . . . . . . . . . . . . . 1 . Scrap Searched 11 | . . . . . . 1 . . . . 1 . . . . . 3 . 2 . . . . . . . . . . 2 1 . 1 . . . . . . . . . Spaces Dug 345 | . . . . . . . 2 5 . . 1 . . . 3 . 3 . 7 . . 11 1 . . 185 3 . 4 1 1 3 7 19 12 . 5 12 20 13 12 15 Terrain Destroyed 489 | . . . . . . . 2 53 . 15 1 . . . 3 . 3 . 7 . . 11 1 . 2 188 3 . 4 1 1 3 8 19 12 . 5 12 20 13 87 15 Melee 163 | . . . . . . . 2 5 . . 1 . . . 3 . 3 . 7 . . 11 1 . . 5 3 . 4 1 1 3 5 19 12 . 5 12 20 13 12 15 Projectile 23 | . . . . . . . . . . . . . . . . . . . . . . . . . 2 18 . . . . . . 3 . . . . . . . . . AOE 303 | . . . . . . . . 48 . 15 . . . . . . . . . . . . . . . 165 . . . . . . . . . . . . . . 75 . Actions | -11 -10 -10 -9 -9 -9 -8 -8 -7 -7 -7 -7 -7 -7 -6 -6 -6 -6 -6 -5 -5 -5 -5 -5 -5 -5 -5 -4 -4 -4 -4 -4 -4 -3 -3 -3 -3 -2 -2 -2 -1 -1 -1 --------- Run | Scr Mat Min Mat Min Exi Min Mat Fac Was Fac Low Low Dat Pro Fac Low Zio Dee Pro Fac Was Fac Ext Cet Arc Hub Fac Was Fac Upp Upp War Pro Res Arm Lab Res Qua Sec Acc Com Ac0 Total 37880 | 46 230 142 125 176 508 502 822 1638 295 790 318 471 84 690 2133 86 1461 223 1137 692 71 1175 1186 509 148 476 460 238 896 495 684 1206 662 2387 1661 256 613 1271 1771 1222 3844 4080 Wait 6675 | . 7 9 2 6 . 17 175 89 39 107 39 134 . 128 370 1 371 17 472 184 . 555 391 278 76 101 28 91 141 44 360 247 176 210 523 . 128 75 147 101 278 558 Move 29220 | 42 177 127 102 164 504 472 585 1442 252 633 272 334 84 562 1728 82 1080 190 651 484 67 589 738 215 65 328 413 147 691 450 318 914 454 2078 1099 235 475 1152 1507 1057 3194 3067 Hop 121 | . . 2 . 3 . 9 11 26 . 7 . . . . 3 . . . 1 2 . 4 7 . 1 . . . 5 . 5 5 . 4 2 . 1 . 10 8 3 2 Pick Up 94 | 2 3 . . . 2 . 6 9 1 1 1 1 . . 3 . . 2 . 6 2 4 2 2 . 1 3 . 3 . . 3 . 8 4 3 1 3 5 2 5 6 Fast Attach 136 | 2 6 . 1 . 1 1 9 5 1 1 2 . . . 4 . 2 . 1 4 . 1 . . . 2 2 . 5 . . 7 . 18 3 5 . 1 20 2 14 16 Attach 68 | . . . 1 2 . . 1 3 . . 1 . . . 2 . . 1 2 4 . 3 . . . 1 2 . 1 . . 1 . 3 . . 1 2 5 . 25 7 Detach 36 | . . . . . . . . . . . . . . . . 1 . 1 1 . . . . . . . 2 . . . . . . 4 . . . . 1 . 22 4 Swap 78 | . 2 1 3 . . . 5 10 . 2 . . . . 4 1 . . . . . 6 2 2 . 2 2 . 3 . . 4 . 4 3 2 . 1 5 2 2 10 Drop 161 | . 3 1 2 1 1 1 8 9 2 2 1 1 . . 5 1 1 3 . 4 2 . 2 3 . 3 2 . 7 . . 11 . 19 7 8 . 3 15 2 14 17 Fire 237 | . 31 2 14 . . . 19 31 . 31 . . . . . . . . . . . . 15 . 6 20 . . 1 . . 11 2 2 . . . . 1 . 45 6 Melee 917 | . . . . . . 2 3 5 . 6 2 1 . . 14 . 7 9 9 4 . 13 16 9 . 18 6 . 21 1 1 3 30 37 20 3 7 34 53 48 238 297 Ram 1 | . 1 . . . . . . . . . . . . . . . . . . . . . . . . . . . . . . . . . . . . . . . . . Kick 6 | . . . . . . . . . . . . . . . . . . . . . . . . . . . . . . . . . . . . . . . . . . 6 Crush 83 | . . . . . . . . . . . . . . . . . . . . . . . . . . . . . . . . . . . . . . . . . . 83 Escape Stasis 38 | . . . . . . . . . . . . . . . . . . . . . . . 13 . . . . . 18 . . . . . . . . . 2 . 4 1 Rewire 9 | . . . . . . . . 9 . . . . . . . . . . . . . . . . . . . . . . . . . . . . . . . . . . Trap . | . . . . . . . . . . . . . . . . . . . . . . . . . . . . . . . . . . . . . . . . . . . Miscellaneous . | . . . . . . . . . . . . . . . . . . . . . . . . . . . . . . . . . . . . . . . . . . . Route ------- -11/Scrapyard -10/Materials (discovered 3 exits: *Mat / *Min x2) -10/Mines -9/Materials (discovered 2 exits: [*Min] / [*Sto]) -9/Mines -9/Exiles -8/Mines (discovered 2 exits: *Mat x2) -8/Materials -7/Factory (discovered 6 exits: *Fac x4 / *Low x2) -7/Waste -7/Factory (discovered 2 exits: *Fac / *Low) -7/Lower Caves -7/Lower Caves -7/Data Miner -6/Proximity Caves -6/Factory (discovered 4 exits: *Fac x2 / *Low x2) -6/Lower Caves -6/Zion (discovered 2 exits: *Dee / [*Pro]) -6/Deep Caves -5/Proximity Caves -5/Factory -5/Waste -5/Factory (discovered 2 exits: [Upp] / *Ext) -5/Extension (discovered 3 exits: *Fac x2 / *Cet) -5/Cetus (discovered 2 exits: *Fac / *Arc) -5/Archives (discovered 3 exits: Fac / *Hub x2) -5/Hub_04(d) (discovered 4 exits: *Fac x4) -4/Factory (discovered 2 exits: Upp x2) -4/Waste -4/Factory (discovered 3 exits: *Res x2 / *Upp) -4/Upper Caves -4/Upper Caves -4/Warlord -3/Proximity Caves -3/Research (discovered 6 exits: *Res x3 / *Arm / Tes x2) -3/Armory (discovered 3 exits: Res x2 / *Lab) -3/Lab -2/Research (discovered 2 exits: Acc / *Qua) -2/Quarantine (discovered 2 exits: *Acc / *Sec) -2/Section 7 -1/Access (discovered 2 exits: [Sur] / *Com) -1/Command (discovered 3 exits: [*Sur x2] / *Ac0) -1/Access_0 0b11 Command History --------- Turn | Location | Event 2 | -11/Scrapyard | Discovered new exit (range 16) 27 | -11/Scrapyard | Entered Materials 76 | -10/Materials | Identified exit to Mines 181 | -10/Materials | Discovered new exit (range 14) 207 | -10/Materials | Entered Mines 258 | -10/Mines | Discovered new exit (range 7) 272 | -10/Mines | Entered Materials 272 | -9/Materials | Evolved 2 slots: Propulsion x1, Utility x1 323 | -9/Materials | Discovered new exit (range 8) 344 | -9/Materials | Discovered new exit (range 16) 354 | -9/Materials | Entered Mines 415 | -9/Mines | Identified exit to Exiles 423 | -9/Mines | Deemed a non-threat by the Exiles lab entrance 426 | -9/Mines | Entered Exiles 436 | -9/Exiles | Met 8R-AWN 442 | -9/Exiles | Met EX-HEX 453 | -9/Exiles | Met EX-BIN 459 | -9/Exiles | Met EX-DEC 461 | -9/Exiles | Learned location of Zion (-6) 496 | -9/Exiles | Aligned with FarCom system 497 | -9/Exiles | Given EX-Vault access code 505 | -9/Exiles | Opened EX-Vault 508 | -9/Exiles | Found Field Lobotomy Kit 509 | -9/Exiles | Found Trap Reconfigurator 518 | -9/Exiles | Warned to stay clear of 0b10 Research branches 545 | -9/Exiles | Visited The Gauntlet 580 | -9/Exiles | Found Supersonic Drone Bay 613 | -9/Exiles | Discovered new exit (range 14) 617 | -9/Exiles | Stole three prototypes: Field Lobotomy Kit, Trap Reconfigurator, Supersonic Drone Bay 617 | -9/Exiles | Entered Mines 666 | -8/Mines | Discovered new exit (range 28) 677 | -8/Mines | Build established: Scavenger-Mutant 791 | -8/Mines | Discovered new exit (range 5) 823 | -8/Mines | Entered Materials 823 | -8/Materials | Evolved 2 slots: Utility x2 916 | -8/Materials | Discovered new exit (range 13) 1267 | -8/Materials | Entered Factory 1267 | -7/Factory | Evolved 2 slots: Power x1, Propulsion x1 1269 | -7/Factory | FarCom data flow suspended 1290 | -7/Factory | Discovered new exit (range 112) 1298 | -7/Factory | Discovered new exit (range 174) 1301 | -7/Factory | Discovered new exit (range 168) 1311 | -7/Factory | Identified exit to Lower Caves 1315 | -7/Factory | Discovered new exit (range 121) 1316 | -7/Factory | Discovered new exit (range 172) 1426 | -7/Factory | Central database locked down 1529 | -7/Factory | Build established: Sprinter 1655 | -7/Factory | Garrison activated, responded to threat 1725 | -7/Factory | Fabricated Lrn. Sensor Array? 1871 | -7/Factory | Manually triggered Chute Trap 1871 | -7/Factory | Sucked down chute 1871 | -7/Factory | Entered Waste 1872 | -7/Waste | Joined by Warlord forces that had cleared the area 1919 | -7/Waste | Discovered new exit (range 16) 1980 | -7/Waste | Entered Factory 1980 | -7/Factory | Accompanied by 20 allies 2018 | -7/Factory | Discovered new exit (range 6) 2090 | -7/Factory | Garrison activated, responded to threat 2247 | -7/Factory | Discovered exit to Lower Caves (range 16) 2329 | -7/Factory | Entered Lower Caves 2329 | -7/Lower Caves | Accompanied by 3 allies 2331 | -7/Lower Caves | Encountered a Warlord checkpoint 2331 | -7/Lower Caves | Identified exit to Lower Caves 2352 | -7/Lower Caves | Found Alien Artifact 2352 | -7/Lower Caves | Identified Core Expander 2352 | -7/Lower Caves | Installed Core Expander, added new Propulsion slot 2371 | -7/Lower Caves | Spotted B-75 Beast 2450 | -7/Lower Caves | Entered another Lower Caves area 2472 | -7/Lower Caves | Spotted B-75 Beast 2491 | -7/Lower Caves | Encountered a Warlord checkpoint 2646 | -7/Lower Caves | Spotted YO-516(f) 2648 | -7/Lower Caves | Encountered a Master Thief 2651 | -7/Lower Caves | Spotted 1D-ABS(f) 2652 | -7/Lower Caves | Encountered a Master Thief 2663 | -7/Lower Caves | Learned Factory stockpile data 2671 | -7/Lower Caves | Discovered new exit (range 16) 2675 | -7/Lower Caves | Identified exit to Data Miner 2675 | -7/Lower Caves | Entered Data Miner 2675 | -7/Data Miner | Discovered new exit (range 6) 2680 | -7/Data Miner | Met Data Miner 2685 | -7/Data Miner | Learned location of Section 7 (-2) 2685 | -7/Data Miner | Acquired the access code to Warlord's prototype stash 2689 | -7/Data Miner | Received God Mode back door access code from Data Miner 2697 | -7/Data Miner | Identified exit to Proximity Caves 2697 | -7/Data Miner | Entered Proximity Caves 2962 | -6/Proximity Caves | Discovered new exit (range 10) 2964 | -6/Proximity Caves | Identified exit to Factory 2972 | -6/Proximity Caves | Entered Factory 2972 | -6/Factory | Evolved 2 slots: Utility x2 3006 | -6/Factory | Found Prototype Launcher 3006 | -6/Factory | Identified Scatter Rocket Array 3169 | -6/Factory | Fabricated Exp. Sensor Array? 3281 | -6/Factory | Discovered new exit (range 12) 3283 | -6/Factory | Build established: Hacker-Sprinter 3284 | -6/Factory | Identified exit to Factory 3308 | -6/Factory | Discovered new exit (range 15) 3312 | -6/Factory | Identified exit to Lower Caves 3468 | -6/Factory | Discovered exit to Factory (range 6) 3646 | -6/Factory | Incoming investigation squad redirected 3811 | -6/Factory | Fabricated Imp. Cesium-ion Thruster (x1) 3848 | -6/Factory | Entered Lower Caves 3869 | -6/Lower Caves | A Derelict revealed a hidden shortcut to a safe place 3871 | -6/Lower Caves | Entered Zion 3926 | -6/Zion | Learned Factory scanalyzer intel 3930 | -6/Zion | Gained Derelict followers 3972 | -6/Zion | Learned location of Testing (-3) 4026 | -6/Zion | Learned Factory terminal intel 4027 | -6/Zion | Learned Factory emergency access door positions 4227 | -6/Zion | Discovered new exit (range 15) 4241 | -6/Zion | Received a hallucinogenic algorithm 4390 | -6/Zion | Learned location of Extension (-5) 4405 | -6/Zion | Discovered new exit (range 4) 4407 | -6/Zion | Saw the warning signs outside the Deep Caves entrance 4407 | -6/Zion | Identified exit to Deep Caves 4514 | -6/Zion | Entered Deep Caves 4514 | -6/Deep Caves | Accompanied by 2 allies 4557 | -6/Deep Caves | Z-Facility disabled 4568 | -6/Deep Caves | Attacked by Z-Imprinter 4587 | -6/Deep Caves | Discovered new exit (range 6) 4591 | -6/Deep Caves | Found Surveybot 24 Chip 4595 | -6/Deep Caves | Found Surveybot 24 Scanner 4598 | -6/Deep Caves | Identified exit to Proximity Caves 4603 | -6/Deep Caves | Entered Proximity Caves 4632 | -5/Proximity Caves | Lost 5 parts (1p3n1w) 5226 | -5/Proximity Caves | Received a Behemoth hack from an annoying Tinkerer 5291 | -5/Proximity Caves | Entered Factory 5291 | -5/Factory | Evolved 2 slots: Utility x2 5293 | -5/Factory | Loaded intel: 22 terminal locations 5294 | -5/Factory | Loaded intel: 4 scanalyzer locations 5388 | -5/Factory | Fabricated Imp. Cesium-ion Thruster (x1) 5457 | -5/Factory | Fabricated Imp. Cesium-ion Thruster (x1) 5533 | -5/Factory | Fabricated Exp. Terrain Scanner (x1) 5606 | -5/Factory | Discovered new exit (range 14) 5609 | -5/Factory | Identified exit to Factory 5623 | -5/Factory | Manually triggered Chute Trap 5623 | -5/Factory | Sucked down chute 5623 | -5/Factory | Entered Waste 5626 | -5/Waste | Spotted C-40 Crusher 5627 | -5/Waste | Spotted C-40 Crusher 5629 | -5/Waste | Spotted C-40 Crusher 5633 | -5/Waste | Spotted C-40 Crusher 5634 | -5/Waste | Found Prototype Processor 5635 | -5/Waste | Spotted C-40 Crusher 5638 | -5/Waste | EMP discharged 5638 | -5/Waste | Spotted C-40 Crusher 5640 | -5/Waste | Discovered new exit (range 10) 5641 | -5/Waste | Identified exit to Factory 5642 | -5/Waste | Entered Factory 5684 | -5/Factory | Identified Exp. Melee Analysis Suite 5737 | -5/Factory | Fabricated Imp. Cesium-ion Thruster? 5800 | -5/Factory | Discovered new exit (range 20) 5816 | -5/Factory | Identified exit to Extension 5869 | -5/Factory | System corruption reached 10% 5869 | -5/Factory | Imp. Hacking Suite fried by hacking feedback 5882 | -5/Factory | Discovered new exit (range 30) 5892 | -5/Factory | Incoming investigation squad redirected 5971 | -5/Factory | Fabricated Imp. Diametric Drive? 5987 | -5/Factory | Repaired Broken Imp. Diametric Drive 6233 | -5/Factory | Local fabrication network quarantined 6313 | -5/Factory | Build established: Machinist-Sprinter 6385 | -5/Factory | Entered Extension 6630 | -5/Extension | Rescued a captive Derelict 6631 | -5/Extension | Rescued a captive Derelict 6671 | -5/Extension | Rescued a captive Derelict 6673 | -5/Extension | Rescued a captive Derelict 6686 | -5/Extension | Build established: Machinist-Scout 6717 | -5/Extension | Rescued a captive Derelict 6765 | -5/Extension | Discovered exit to Factory (range 30) 6822 | -5/Extension | Spotted B-75 Beast 6824 | -5/Extension | Spotted B-75 Beast 6829 | -5/Extension | Rescued a captive Derelict 6831 | -5/Extension | Rescued a captive Derelict 6837 | -5/Extension | Rescued a captive Derelict 6837 | -5/Extension | Rescued a captive Derelict 6842 | -5/Extension | Rescued A7 6866 | -5/Extension | Rescued a captive Derelict 6874 | -5/Extension | Rescued a captive Derelict 6892 | -5/Extension | Discovered new exit (range 28) 6893 | -5/Extension | Discovered exit to Factory (range 29) 6927 | -5/Extension | Identified exit to Cetus 7013 | -5/Extension | Entered Cetus 7013 | -5/Cetus | Accompanied by 10 allies 7018 | -5/Cetus | Acquired a Cetus Manufacturing Module code from A7 7045 | -5/Cetus | Spotted Cetus Guard 7045 | -5/Cetus | Spotted Cetus Guard 7054 | -5/Cetus | Spotted Cetus Guard 7057 | -5/Cetus | Spotted Cetus Guard 7063 | -5/Cetus | Allies destroyed Cetus Guard 7065 | -5/Cetus | Allies destroyed Cetus Guard 7065 | -5/Cetus | Allies destroyed Cetus Guard 7075 | -5/Cetus | Allies destroyed Cetus Guard 7084 | -5/Cetus | Discovered new exit (range 29) 7084 | -5/Cetus | Started Cetus Manufacturing Module 7097 | -5/Cetus | Escorted A7 to Cetus Mainframe 7109 | -5/Cetus | Manufactured an Enhanced Grunt 7134 | -5/Cetus | Manufactured an Enhanced Grunt 7159 | -5/Cetus | Manufactured an Enhanced Grunt 7184 | -5/Cetus | Manufactured an Enhanced Grunt 7209 | -5/Cetus | Manufactured an Enhanced Grunt 7220 | -5/Cetus | Discovered exit to Factory (range 29) 7292 | -5/Cetus | Spotted Cetus Guard 7294 | -5/Cetus | Allies destroyed Cetus Guard 7298 | -5/Cetus | Spotted Cetus Guard 7298 | -5/Cetus | Spotted Cetus Guard 7298 | -5/Cetus | Spotted Cetus Guard 7300 | -5/Cetus | Allies destroyed Cetus Guard 7302 | -5/Cetus | Allies destroyed Cetus Guard 7304 | -5/Cetus | Allies destroyed Cetus Guard 7309 | -5/Cetus | Met Revision 17 7329 | -5/Cetus | Identified exit to Archives 7358 | -5/Cetus | Destroyed A7 7361 | -5/Cetus | Extracted ID and sensor layout for unrecognized location from A7's data core 7365 | -5/Cetus | Entered Archives 7365 | -5/Archives | Accompanied by 9 allies 7372 | -5/Archives | Discovered exit to Factory (range 24) 7373 | -5/Archives | Discovered new exit (range 26) 7430 | -5/Archives | Discovered new exit (range 15) 7432 | -5/Archives | Identified exit to Hub_04(d) 7468 | -5/Archives | Entered Hub_04(d) 7468 | -5/Hub_04(d) | Accompanied by 8 allies 7469 | -5/Hub_04(d) | Discovered exit to Factory (range 24) 7525 | -5/Hub_04(d) | Discovered exit to Factory (range 25) 7576 | -5/Hub_04(d) | Discovered exit to Factory (range 24) 7618 | -5/Hub_04(d) | Discovered exit to Factory (range 23) 7729 | -5/Hub_04(d) | Network Hub disabled 7733 | -5/Hub_04(d) | Entered Factory 7733 | -4/Factory | Evolved 2 slots: Propulsion x1, Utility x1 7804 | -4/Factory | Identified exit to Upper Caves 7876 | -4/Factory | Sucked down chute 7876 | -4/Factory | Entered Waste 7877 | -4/Waste | Met a frightened Derelict 7881 | -4/Waste | Spotted C-40 Crusher 7884 | -4/Waste | Discovered new exit (range 29) 7886 | -4/Waste | Spotted C-40 Crusher 7887 | -4/Waste | Spotted C-40 Crusher 7891 | -4/Waste | Spotted C-40 Crusher 7893 | -4/Waste | Spotted C-40 Crusher 7894 | -4/Waste | Spotted C-40 Crusher 7897 | -4/Waste | Warlord forces began an assault 7899 | -4/Waste | Allies destroyed C-40 Crusher 7901 | -4/Waste | Allies destroyed C-40 Crusher 7903 | -4/Waste | Allies destroyed C-40 Crusher 7918 | -4/Waste | Allies destroyed C-40 Crusher 7924 | -4/Waste | Allies destroyed C-40 Crusher 7933 | -4/Waste | Identified exit to Factory 7977 | -4/Waste | Allies destroyed C-40 Crusher 7998 | -4/Waste | Entered Factory 7998 | -4/Factory | Accompanied by 17 allies 8033 | -4/Factory | Found Prototype Hackware 8034 | -4/Factory | Identified Exp. Hacking Suite 8139 | -4/Factory | Discovered new exit (range 21) 8203 | -4/Factory | Fabricated Imp. Diametric Drive? 8277 | -4/Factory | Identified exit to Research 8287 | -4/Factory | Fabricated Imp. Diametric Drive (x1) 8338 | -4/Factory | Discovered exit to Upper Caves (range 26) 8344 | -4/Factory | Discovered exit to Research (range 29) 8358 | -4/Factory | Entered Upper Caves 8447 | -4/Upper Caves | Encountered a Warlord checkpoint 8450 | -4/Upper Caves | Discovered new exit (range 11) 8467 | -4/Upper Caves | Identified exit to Upper Caves 8477 | -4/Upper Caves | Entered another Upper Caves area 8836 | -4/Upper Caves | Learned location of 1 exit from Proximity Caves 8881 | -4/Upper Caves | Discovered new exit (range 14) 8883 | -4/Upper Caves | Identified exit to Warlord 8892 | -4/Upper Caves | Entered Warlord 8900 | -4/Warlord | System corruption cleaned by Quarantine Array 8970 | -4/Warlord | Learned 4 Armory zone layouts 8970 | -4/Warlord | Learned 4 Armory zone layouts 8970 | -4/Warlord | Learned 4 Research zone layouts 8971 | -4/Warlord | Learned Armory security intel 8971 | -4/Warlord | Learned Quarantine security intel 8971 | -4/Warlord | Learned Research recycling unit intel 8974 | -4/Warlord | Found Prototype Device 8974 | -4/Warlord | Identified Minesniffer Drone Bay 9012 | -4/Warlord | Received a Watcher feed algorithm from an ecstatic Tinkerer 9015 | -4/Warlord | Met Warlord 9020 | -4/Warlord | Opened Warlord's prototype stash 9021 | -4/Warlord | Found Prototype Reactor 9023 | -4/Warlord | Found Prototype Device 9023 | -4/Warlord | Identified Exp. Cloaking Device 9026 | -4/Warlord | Found Prototype Device 9026 | -4/Warlord | Identified System Purifier 9028 | -4/Warlord | Found Prototype Processor 9028 | -4/Warlord | Identified Spectral Analyzer 9040 | -4/Warlord | Warlord's base attacked by MAIN.C 9060 | -4/Warlord | Found Prototype Energy Gun 9060 | -4/Warlord | Identified Vortex Rifle 9101 | -4/Warlord | Discovered new exit (range 30) 9223 | -4/Warlord | Opened side exit 9312 | -4/Warlord | Identified exit to Proximity Caves 9335 | -4/Warlord | Entered Proximity Caves 9335 | -3/Proximity Caves | Accompanied by 4 allies 9603 | -3/Proximity Caves | Spotted B-86 Titan 9663 | -3/Proximity Caves | Entered Research 9663 | -3/Research | Evolved 2 slots: Propulsion x1, Utility x1 9665 | -3/Research | Loaded intel: 4 recycling unit locations 9666 | -3/Research | Identified Vortex Chain Reactor 9710 | -3/Research | Identified exit to Armory 9710 | -3/Research | Identified exit to Testing 9863 | -3/Research | Revision forces began assault on 0b10 10095 | -3/Research | Fabricated Exp. Terrain Scanner? 10127 | -3/Research | Spotted B-86 Titan 10165 | -3/Research | Discovered new exit (range 16) 10191 | -3/Research | Found Prototype Device 10191 | -3/Research | Identified EM Dispersion Field 10204 | -3/Research | Discovered new exit (range 18) 10242 | -3/Research | Found Prototype Launcher 10242 | -3/Research | Identified Tesla Bomb Launcher 10251 | -3/Research | Found Prototype Device 10251 | -3/Research | Identified Exp. Thermal Defense Suite 10259 | -3/Research | Discovered new exit (range 15) 10268 | -3/Research | Identified exit to Research 10269 | -3/Research | Local fabrication network quarantined 10320 | -3/Research | Entered Armory 10321 | -3/Armory | Identified exit to Lab 10454 | -3/Armory | Fabricated Electron Diverter? 10516 | -3/Armory | Build established: Hacker-Scout 10558 | -3/Armory | Fabricated Electron Diverter? 10695 | -3/Armory | Fabricated Electron Diverter? 10825 | -3/Armory | Fabricated Electron Diverter? 10905 | -3/Armory | Build established: Machinist-Scout 10910 | -3/Armory | Local fabrication network quarantined 10929 | -3/Armory | Fabricated Electron Diverter (x1) 11023 | -3/Armory | Found Prototype Processor 11023 | -3/Armory | Identified Exp. Target Analyzer 11038 | -3/Armory | Discovered exit to Research (range 19) 11070 | -3/Armory | First assault squad dispatched 11075 | -3/Armory | Entered Lab 11075 | -3/Lab | Discovered exit to Research (range 9) 11077 | -3/Lab | Hidden lab's door opened automatically 11077 | -3/Lab | Sensor layout match revealed 11078 | -3/Lab | Gained access to the hidden lab's interior 11083 | -3/Lab | Found Prototype Special Weapon 11084 | -3/Lab | Identified Gui. Remote Datajack 11089 | -3/Lab | Unable to decrypt terminal 11092 | -3/Lab | Found Prototype Device 11092 | -3/Lab | Identified AEGIS Remote Shield 11095 | -3/Lab | Found Prototype Energy Gun 11095 | -3/Lab | Identified Hyp. EM Gauss Rifle 11097 | -3/Lab | Found Prototype Energy Gun 11097 | -3/Lab | Identified Tachyon Dispersion Ray 11113 | -3/Lab | Found Prototype Hackware 11113 | -3/Lab | Identified Deep Network Scanner 11123 | -3/Lab | Found Alien Artifact 11125 | -3/Lab | Found Alien Artifact 11138 | -3/Lab | Entered Research 11138 | -2/Research | Warlord forces began assault on 0b10 11138 | -2/Research | Evolved 2 slots: Propulsion x1, Utility x1 11139 | -2/Research | Identified exit to Access 11201 | -2/Research | Discovered new exit (range 30) 11248 | -2/Research | Research machine network offline 11267 | -2/Research | Fabricated Exp. Armor Integrity Analyzer? 11347 | -2/Research | Spotted B-90 Cyclops 11348 | -2/Research | Identified exit to Quarantine 11348 | -2/Research | Entered Quarantine 11353 | -2/Quarantine | Found Alien Slashing Weapon 11353 | -2/Quarantine | Identified Sigix Broadsword 11376 | -2/Quarantine | Build established: Hacker-Scout 11385 | -2/Quarantine | Identified Integrated Reactor 11385 | -2/Quarantine | Installed Integrated Reactor, increased core energy generation (+10) 11386 | -2/Quarantine | Identified Transdimensional Reconstructor 11403 | -2/Quarantine | Found Alien Artifact 11413 | -2/Quarantine | Identified Core Reset Matrix 11436 | -2/Quarantine | Cryocooling Duct disabled 11451 | -2/Quarantine | Ambient heat levels rising (+20) 11451 | -2/Quarantine | Non-combat units ordered to evacuate 11510 | -2/Quarantine | Discovered exit to Access (range 24) 11572 | -2/Quarantine | Found Alien Artifact 11575 | -2/Quarantine | Identified Subatomic Replicator 11664 | -2/Quarantine | Spotted Fortress 11673 | -2/Quarantine | Discovered new exit (range 6) 11674 | -2/Quarantine | Identified exit to Section 7 11684 | -2/Quarantine | Entered Section 7 11713 | -2/Section 7 | Found Alien Artifact 11713 | -2/Section 7 | Identified Integrity Redistributor 11713 | -2/Section 7 | Used Integrity Redistributor, redistributed integrity from core (-36) 11805 | -2/Section 7 | Found Integrated Reactor 11805 | -2/Section 7 | Installed Integrated Reactor, increased core energy generation (+10) 11815 | -2/Section 7 | Found Prototype Processor 11815 | -2/Section 7 | Identified Exp. Core Analyzer 11825 | -2/Section 7 | Spotted S7 Guard 11828 | -2/Section 7 | Discovered exit to Access (range 19) 11834 | -2/Section 7 | Found Alien Artifact 11868 | -2/Section 7 | Identified Core Membrane 11875 | -2/Section 7 | Installed Core Membrane, gained immunity to corruption 12010 | -2/Section 7 | Assimilated C-65 Expert with FLK Orb 12021 | -2/Section 7 | Found Integrated Reactor 12029 | -2/Section 7 | Installed Integrated Reactor, increased core energy generation (+10) 12059 | -2/Section 7 | Spotted Alpha 7 12084 | -2/Section 7 | Spotted B-99 Colossus 12092 | -2/Section 7 | Found Integrity Redistributor 12094 | -2/Section 7 | Used Integrity Redistributor, redistributed integrity from core (-24) 12096 | -2/Section 7 | Found Integrity Redistributor 12112 | -2/Section 7 | Used Subatomic Replicator to replicate Alien Artifact 12114 | -2/Section 7 | Found Alien Artifact 12114 | -2/Section 7 | Identified LRC Boosters 12114 | -2/Section 7 | Installed LRC Boosters, increased mass support (+10) 12115 | -2/Section 7 | Installed LRC Boosters, increased mass support (+10) 12117 | -2/Section 7 | Found Alien Artifact 12117 | -2/Section 7 | Identified LRC Insulator 12117 | -2/Section 7 | Installed LRC Insulator, gained EM resistance (25) 12119 | -2/Section 7 | Found Alien Artifact 12119 | -2/Section 7 | Identified LRC Armor 12119 | -2/Section 7 | Installed LRC Armor, increased core integrity (+250) 12128 | -2/Section 7 | Found Integrity Redistributor 12235 | -2/Section 7 | Spotted Executioner 12250 | -2/Section 7 | Entered Access 12250 | -1/Access | Evolved 2 slots: Utility x2 12286 | -1/Access | Found Prototype Device 12286 | -1/Access | Identified Exp. Thermal Shield 12350 | -1/Access | Local fabrication network quarantined 12369 | -1/Access | Fabricated Femtoactuators (x1) 12485 | -1/Access | Identified exit to Command 12502 | -1/Access | Discovered new exit (range 24) 12581 | -1/Access | Entered Command 12620 | -1/Command | Spotted B-99 Colossus 12679 | -1/Command | Build established: Machinist-Scout 12727 | -1/Command | Phase Generator disabled 12855 | -1/Command | Discovered new exit (range 29) 12858 | -1/Command | First assault squad dispatched 12882 | -1/Command | Incoming assault squad redirected 12934 | -1/Command | Spotted Combat Programmer 12937 | -1/Command | Destroyed Combat Programmer 12937 | -1/Command | Spotted Combat Programmer 12977 | -1/Command | Spotted M Guard 12977 | -1/Command | Spotted M Guard 13059 | -1/Command | Destroyed Combat Programmer 13083 | -1/Command | Found Prototype Special Weapon 13083 | -1/Command | Identified Exp. Remote Datajack 13086 | -1/Command | Found Prototype Energy Cannon 13086 | -1/Command | Identified EMDS 13108 | -1/Command | Destroyed M Guard 13125 | -1/Command | Destroyed M Guard 13125 | -1/Command | Destroyed all MAIN.C guards 13137 | -1/Command | Incoming assault squad redirected 13163 | -1/Command | Found Prototype Reactor 13195 | -1/Command | Disengaged cave seal 13195 | -1/Command | Derelicts emerged from the dark tunnel 13197 | -1/Command | Used Integrity Redistributor, redistributed integrity from core (-60) 13209 | -1/Command | Incoming assault squad redirected 13221 | -1/Command | Disengaged cave seal 13271 | -1/Command | Befriended a Behemoth using the annoying Tinkerer's hack 13357 | -1/Command | Incoming assault squad redirected 13423 | -1/Command | Incoming assault squad redirected 13478 | -1/Command | Destroyed 8 combat bots 13529 | -1/Command | Spotted B-99 Colossus 13531 | -1/Command | Spotted Executioner 13531 | -1/Command | Spotted Executioner 13534 | -1/Command | Spotted Striker 13538 | -1/Command | Spotted Striker 13538 | -1/Command | Spotted Alpha 7 13538 | -1/Command | Spotted Executioner 13538 | -1/Command | Spotted Executioner 13538 | -1/Command | Spotted B-99 Colossus 13543 | -1/Command | Assimilated Executioner with FLK Orb 13547 | -1/Command | Assimilated B-99 Colossus with FLK Orb 13547 | -1/Command | Allies destroyed Executioner 13555 | -1/Command | Spotted Alpha 7 13559 | -1/Command | Destroyed Executioner 13560 | -1/Command | Allies destroyed Striker 13564 | -1/Command | Rewired Executioner 13573 | -1/Command | Allies destroyed Alpha 7 13575 | -1/Command | Destroyed Alpha 7 13610 | -1/Command | High security lockdown imminent 13617 | -1/Command | P-80 Master assimilated allied Y1-NGO(b) 13621 | -1/Command | P-80 Master assimilated allied ZF-JBF(b) 13634 | -1/Command | P-80 Master assimilated allied P6-5NH(l) 13670 | -1/Command | Found Exp. Core Analyzer 13690 | -1/Command | High security lockdown engaged 13714 | -1/Command | Met MAIN.C 13715 | -1/Command | 0b10 Conduit disabled 13749 | -1/Command | Destroyed MAIN.C Shell 13750 | -1/Command | MAIN.C activated Command garrisons 13770 | -1/Command | Destroyed MAIN.C 13772 | -1/Command | Found Prototype Protection 13772 | -1/Command | Identified Exp. Powered Armor 13774 | -1/Command | Found Exp. Powered Armor 13776 | -1/Command | Found Prototype Reactor 13776 | -1/Command | Identified Zero-point Reactor (x2) 13790 | -1/Command | Used Integrity Redistributor, redistributed integrity from core (-64) 13797 | -1/Command | Spotted B-99 Colossus 13798 | -1/Command | Discovered new exit (range 19) 13818 | -1/Command | Warped through subspace to slip node 13818 | -1/Command | Discovered new exit (range 4) 13821 | -1/Command | Entered Access_0 13822 | -1/Access_0 | Met Architect 13829 | -1/Access_0 | Subspace Access Node disabled 13835 | -1/Access_0 | Found Prototype Device 13836 | -1/Access_0 | Identified Adv. Kinecellerator 13847 | -1/Access_0 | A6 warped into view 13850 | -1/Access_0 | Subspace Access Node disabled 13873 | -1/Access_0 | Found Prototype Device 13873 | -1/Access_0 | Identified Exp. ECM Suite 13900 | -1/Access_0 | Subspace Access Node disabled 13901 | -1/Access_0 | A5 warped into view 13952 | -1/Access_0 | Subspace Access Node disabled 14165 | -1/Access_0 | Destroyed A2 14166 | -1/Access_0 | Extracted Singularity Gate Test 138-C access codes from A2's data core 14175 | -1/Access_0 | Found Prototype Device 14175 | -1/Access_0 | Identified ST Field Compressor 14184 | -1/Access_0 | A4 warped into view 14200 | -1/Access_0 | Found Prototype Device 14200 | -1/Access_0 | Identified Beam Splitter 14322 | -1/Access_0 | Started Test 138-B, establishing a local singularity 14328 | -1/Access_0 | Found Alien Artifact 14333 | -1/Access_0 | Enhanced Grunt ripped apart by the singularity 14334 | -1/Access_0 | Enhanced Grunt ripped apart by the singularity 14335 | -1/Access_0 | Enhanced Grunt ripped apart by the singularity 14403 | -1/Access_0 | Singularity Gate disabled 14406 | -1/Access_0 | Singularity Gate disabled 14428 | -1/Access_0 | Destroyed A4 14547 | -1/Access_0 | Found Prototype Device 14547 | -1/Access_0 | Identified Exp. Weapon Cycler 14550 | -1/Access_0 | Found Prototype Device 14550 | -1/Access_0 | Identified Exp. Phase Shifter 14668 | -1/Access_0 | Destroyed A6 14795 | -1/Access_0 | Destroyed A8 14830 | -1/Access_0 | Destroyed A5 14837 | -1/Access_0 | Build established: Scavenger-Sprinter 15358 | -1/Access_0 | Destroyed Architect 15359 | -1/Access_0 | Extracted unknown sensor trigger ID from Architect's data core 15362 | -1/Access_0 | Found Prototype Device 15362 | -1/Access_0 | Identified Exp. Actuator Array 15381 | -1/Access_0 | A3 warped into view 15415 | -1/Access_0 | Destroyed A3 15424 | -1/Access_0 | Found Integrity Redistributor 15424 | -1/Access_0 | Used Integrity Redistributor, redistributed integrity from core (-162) 15494 | -1/Access_0 | Identified Hpw. Transdimensional Reconstructor 15494 | -1/Access_0 | Warped through subspace to slip node 15494 | -1/Access_0 | Discovered new exit (range 8) 15513 | -1/Access_0 | Crushed by falling debris 15518 | *** | Establishing 0b11! Last Messages --------------- [REDACTED] >>Record "Log L.RSL58V7F" [REDACTED] >>Record "Log L.VFLK3RLK" Warlord has finally begun his main assault, and it's proceeding quite well. All upper Research areas are under control, as are Testing, Quarantine, and Armory. At this rate, MAIN.C and Warlord forces will wipe each other out, or at least severely cripple one another. >>Record "Log L.XLJZXWC5" [REDACTED] >>Record "Log L.Y1U23ASU" [REDACTED] 15486_ Acquired 20 matter. 15494_ Identified Hpw. Transdimensional Reconstructor. 15494_ Warped through subspace, drawn to slip node. 15494_ EXIT=FOUND 15513_ The unstable cave ceiling collapses. 15513_ Crushed by falling debris. 15513_ Femtoactuators destroyed. 15513_ Core Membrane filtered system corruption (2). Map ----- +----------------------------------------------------+ | | | | | | | | | | | | | | | | | | | | | | | | | | | | | | | | | ?????????????????????????????????????????????????? | | ?????????????????????????????????????????????????? | | ?????????????????????????????????????????????????? | | ?????????????????????????????????????????????????? | | ?????????????????????????????????????????????????? | | ?????????????????????????????????????????????????? | | ????????????????????????###??????????????????????? | | ???????????????????????## ##?????????????????????? | | ???????????????????????# #?????????????????????? | | ???????????????????????# @ #?????????????????????? | | ??????????????????????## #?????????????????????? | | ??????????????????????# #?????????????????????? | | ??????????????????????# ##?????????????????????? | | ??????????????????????## #?????????????????????? | | ??????????????????????# #?????????????????????? | | ??????????????????????# ##?????????????????????? | | ??????????????????????# < #?????????????????????? | | ??????????????????????# ##?????????????????????? | | ??????????????????????## #??????????????????????? | | ??????????????????????# ###??????????????????????? | | ???????????#??????????# #????????????????????????? | | ????????##?#???#??????# #####????????????????????? | | ????##??##??#?##?##?### ##""#????????????????????? | | ?##############?#?#??###""###????????????????????? | | ########?###########?#""###??????????????????????? | | ##########################???????????????????????? | | ############?####?####?#####?????????????????????? | | ##############?########?#?##?##??????????????????? | | ######################?##?####???????????????????? | | ########################?#######?????????????????? | | #############################?###????????????????? | | ###################################??????????????? | | #############################?##?##??????????????? | | ####################################?????????????? | +----------------------------------------------------+ Best States ------------- Heat Dissipation 90 Energy Generation 113 Energy Capacity 700 Matter Stores 300 Matter Capacity 300 Sight Range 23 Robot Scan Range 30 Terrain Scan Range 30 Terrain Scan Density 2010 Power Amplification 40 Additional Mass Support 9 Armor Coverage 800 Resistance: TH 75 Resistance: EM 100 Propulsion Shielding 66 Weapon Shielding 90 Melee Speed Boost 50 Phase Shifting 20 Evasion (%) 87 Melee Accuracy 20 Core Analysis 15 Armor Integrity Analysis 90 Recoil Reduction 1 Offensive Hacking 41 Defensive Hacking 14 Item Schematics ----------------- Lrn. Sensor Array | -7/Factory | Hacked Adv. Salvage Targeting Computer | -7/Factory | Hacked Imp. VTOL Module | -7/Factory | Scanalyzed Combat Drone Bay | -7/Data Miner | Free Lgt. Regenerative Plating | -7/Data Miner | Free Exp. Sensor Array | -7/Data Miner | Free Kinetic Spear | -7/Data Miner | Free Imp. Cesium-ion Thruster | -6/Factory | Hacked Exp. Signal Interpreter | -5/Proximity Caves | Hacked Exp. Terrain Scanner | -5/Proximity Caves | Hacked Exp. Melee Analysis Suite | -5/Factory | Scanalyzed Imp. Diametric Drive | -5/Factory | Scanalyzed Hacking Suite | -3/Research | Hacked Electron Diverter | -3/Research | Scanalyzed Nanoactuators | -2/Research | Hacked Exp. Armor Integrity Analyzer | -2/Research | Hacked Femtoactuators | -2/Quarantine | Hacked Robot Schematics ------------------ G-50 Soldier | -7/Data Miner | Free S-27 Virus | -7/Data Miner | Free X-72 Disruptor | -7/Data Miner | Free H-66 Slayer | -7/Data Miner | Free P-70 Sage | -7/Data Miner | Free I-36 Angel | -7/Data Miner | Free I-47 Archangel | -7/Data Miner | Free P-80 Master | -1/Access | Hacked Fabricated ------------ Lrn. Sensor Array | x1 | -7/Factory Exp. Sensor Array | x1 | -6/Factory Imp. Cesium-ion Thruster | x1 | -6/Factory Imp. Cesium-ion Thruster | x1 | -5/Factory Imp. Cesium-ion Thruster | x1 | -5/Factory Exp. Terrain Scanner | x1 | -5/Factory Imp. Cesium-ion Thruster | x1 | -5/Factory Imp. Diametric Drive | x1 | -5/Factory Imp. Diametric Drive | x1 | -4/Factory Imp. Diametric Drive | x1 | -4/Factory Exp. Terrain Scanner | x1 | -3/Research Electron Diverter | x1 | -3/Armory Electron Diverter | x1 | -3/Armory Electron Diverter | x1 | -3/Armory Electron Diverter | x1 | -3/Armory Electron Diverter | x1 | -3/Armory Exp. Armor Integrity Analyzer | x1 | -2/Research Femtoactuators | x1 | -1/Access Alien Tech Used ----------------- Core Expander Sigix Broadsword Integrated Reactor Integrity Redistributor Core Membrane Subatomic Replicator LRC Boosters LRC Insulator LRC Armor Transdimensional Reconstructor High-powered Transdimensional Reconstructor Achievements -------------- Melee Specialist Challenges ------------ None Game ------ Seed ArchitectComponentExtractor Manual? 0 Play Time 04:40:32 Cumulative 326.1 hours Start 2020.08.30 @ 14:20:53 End 2020.08.30 @ 21:10:50 Sessions 3 Manual Loads 0 Difficulty Rogue Special Mode None Game No. 174 Rogue 174 Adventurer 0 Explorer 0 Win Type 1 Total 24 Types 9/7/4/1/0/0/3 Lore% 94 Gallery% 93 Achievement% 78 Wizard Run 0 Options --------- ASCII 0 Keyboard 0 Movement Numpad Keybinds 0 Fullscreen 2 Font 18/SmallcapsGlow Map View 76x50 Tactical HUD 1 Map Filters NONE Filters NONE Steam 1 RUN: 1f57a4e7-2b1b-43d4-a827-c5da38c36e13